{"text_format":"3","workbook":"xlsx","n_sheets":2,"sheets":["Class Schedule","Class List"],"not_rendered":{"defined_names":13},"read":"whole","date_system":"1900"}

{"sheet":"Class Schedule","index":0,"n_rows":63,"n_cols":9,"rows_kept":63,"merged":[[0,1,1,5]]}
[null,"CLASS SCHEDULE",{"$nulls":4},"SCHEDULE START","TIME INTERVAL"]
[{"$nulls":6},"08:00:00","15 MIN",{"$f":"--LEFT(MinuteText,2)","v":15}]
[null,"TIME","SUNDAY","MONDAY","TUESDAY","WEDNESDAY","THURSDAY","FRIDAY","SATURDAY"]
[null,{"$f":"ScheduleStart","v":"08:00:00"},{"$f":"IFERROR(INDEX(tblClassList[],MATCH(SUMPRODUCT((tblClassList[DAY]=tblSchedule[[#Headers],[SUNDAY]])*($B4>=tblClassList[START TIME])*($B4<=tblClassList[END TIME]),tblClassList[UNIQUE]),tblClassList[UNIQUE],0),2),0)","v":0},{"$f":"IFERROR(INDEX(tblClassList[],MATCH(SUMPRODUCT((tblClassList[DAY]=tblSchedule[[#Headers],[MONDAY]])*($B4>=tblClassList[START TIME])*($B4<=tblClassList[END TIME]),tblClassList[UNIQUE]),tblClassList[UNIQUE],0),2),0)","v":0},{"$f":"IFERROR(INDEX(tblClassList[],MATCH(SUMPRODUCT((tblClassList[DAY]=tblSchedule[[#Headers],[TUESDAY]])*($B4>=tblClassList[START TIME])*($B4<=tblClassList[END TIME]),tblClassList[UNIQUE]),tblClassList[UNIQUE],0),2),0)","v":0},{"$f":"IFERROR(INDEX(tblClassList[],MATCH(SUMPRODUCT((tblClassList[DAY]=tblSchedule[[#Headers],[WEDNESDAY]])*($B4>=tblClassList[START TIME])*($B4<=tblClassList[END TIME]),tblClassList[UNIQUE]),tblClassList[UNIQUE],0),2),0)","v":0},{"$f":"IFERROR(INDEX(tblClassList[],MATCH(SUMPRODUCT((tblClassList[DAY]=tblSchedule[[#Headers],[THURSDAY]])*($B4>=tblClassList[START TIME])*($B4<=tblClassList[END TIME]),tblClassList[UNIQUE]),tblClassList[UNIQUE],0),2),0)","v":0},{"$f":"IFERROR(INDEX(tblClassList[],MATCH(SUMPRODUCT((tblClassList[DAY]=tblSchedule[[#Headers],[FRIDAY]])*($B4>=tblClassList[START TIME])*($B4<=tblClassList[END TIME]),tblClassList[UNIQUE]),tblClassList[UNIQUE],0),2),0)","v":0},{"$f":"IFERROR(INDEX(tblClassList[],MATCH(SUMPRODUCT((tblClassList[DAY]=tblSchedule[[#Headers],[SATURDAY]])*($B4>=tblClassList[START TIME])*($B4<=tblClassList[END TIME]),tblClassList[UNIQUE]),tblClassList[UNIQUE],0),2),0)","v":0}]
[null,{"$f":"B4+TIME(0,MinuteInterval,0)","v":"08:15:00"},{"$f":"IFERROR(INDEX(tblClassList[],MATCH(SUMPRODUCT((tblClassList[DAY]=tblSchedule[[#Headers],[SUNDAY]])*($B5>=tblClassList[START TIME])*($B5<=tblClassList[END TIME]),tblClassList[UNIQUE]),tblClassList[UNIQUE],0),2),0)","v":0},{"$f":"IFERROR(INDEX(tblClassList[],MATCH(SUMPRODUCT((tblClassList[DAY]=tblSchedule[[#Headers],[MONDAY]])*($B5>=tblClassList[START TIME])*($B5<=tblClassList[END TIME]),tblClassList[UNIQUE]),tblClassList[UNIQUE],0),2),0)","v":"MTH-113"},{"$f":"IFERROR(INDEX(tblClassList[],MATCH(SUMPRODUCT((tblClassList[DAY]=tblSchedule[[#Headers],[TUESDAY]])*($B5>=tblClassList[START TIME])*($B5<=tblClassList[END TIME]),tblClassList[UNIQUE]),tblClassList[UNIQUE],0),2),0)","v":0},{"$f":"IFERROR(INDEX(tblClassList[],MATCH(SUMPRODUCT((tblClassList[DAY]=tblSchedule[[#Headers],[WEDNESDAY]])*($B5>=tblClassList[START TIME])*($B5<=tblClassList[END TIME]),tblClassList[UNIQUE]),tblClassList[UNIQUE],0),2),0)","v":"MTH-113"},{"$f":"IFERROR(INDEX(tblClassList[],MATCH(SUMPRODUCT((tblClassList[DAY]=tblSchedule[[#Headers],[THURSDAY]])*($B5>=tblClassList[START TIME])*($B5<=tblClassList[END TIME]),tblClassList[UNIQUE]),tblClassList[UNIQUE],0),2),0)","v":0},{"$f":"IFERROR(INDEX(tblClassList[],MATCH(SUMPRODUCT((tblClassList[DAY]=tblSchedule[[#Headers],[FRIDAY]])*($B5>=tblClassList[START TIME])*($B5<=tblClassList[END TIME]),tblClassList[UNIQUE]),tblClassList[UNIQUE],0),2),0)","v":"MTH-113"},{"$f":"IFERROR(INDEX(tblClassList[],MATCH(SUMPRODUCT((tblClassList[DAY]=tblSchedule[[#Headers],[SATURDAY]])*($B5>=tblClassList[START TIME])*($B5<=tblClassList[END TIME]),tblClassList[UNIQUE]),tblClassList[UNIQUE],0),2),0)","v":0}]
[null,"08:30:00",{"$f":"IFERROR(INDEX(tblClassList[],MATCH(SUMPRODUCT((tblClassList[DAY]=tblSchedule[[#Headers],[SUNDAY]])*($B6>=tblClassList[START TIME])*($B6<=tblClassList[END TIME]),tblClassList[UNIQUE]),tblClassList[UNIQUE],0),2),0)","v":0},{"$f":"IFERROR(INDEX(tblClassList[],MATCH(SUMPRODUCT((tblClassList[DAY]=tblSchedule[[#Headers],[MONDAY]])*($B6>=tblClassList[START TIME])*($B6<=tblClassList[END TIME]),tblClassList[UNIQUE]),tblClassList[UNIQUE],0),2),0)","v":"MTH-113"},{"$f":"IFERROR(INDEX(tblClassList[],MATCH(SUMPRODUCT((tblClassList[DAY]=tblSchedule[[#Headers],[TUESDAY]])*($B6>=tblClassList[START TIME])*($B6<=tblClassList[END TIME]),tblClassList[UNIQUE]),tblClassList[UNIQUE],0),2),0)","v":0},{"$f":"IFERROR(INDEX(tblClassList[],MATCH(SUMPRODUCT((tblClassList[DAY]=tblSchedule[[#Headers],[WEDNESDAY]])*($B6>=tblClassList[START TIME])*($B6<=tblClassList[END TIME]),tblClassList[UNIQUE]),tblClassList[UNIQUE],0),2),0)","v":"MTH-113"},{"$f":"IFERROR(INDEX(tblClassList[],MATCH(SUMPRODUCT((tblClassList[DAY]=tblSchedule[[#Headers],[THURSDAY]])*($B6>=tblClassList[START TIME])*($B6<=tblClassList[END TIME]),tblClassList[UNIQUE]),tblClassList[UNIQUE],0),2),0)","v":0},{"$f":"IFERROR(INDEX(tblClassList[],MATCH(SUMPRODUCT((tblClassList[DAY]=tblSchedule[[#Headers],[FRIDAY]])*($B6>=tblClassList[START TIME])*($B6<=tblClassList[END TIME]),tblClassList[UNIQUE]),tblClassList[UNIQUE],0),2),0)","v":"MTH-113"},{"$f":"IFERROR(INDEX(tblClassList[],MATCH(SUMPRODUCT((tblClassList[DAY]=tblSchedule[[#Headers],[SATURDAY]])*($B6>=tblClassList[START TIME])*($B6<=tblClassList[END TIME]),tblClassList[UNIQUE]),tblClassList[UNIQUE],0),2),0)","v":0}]
[null,"08:45:00",{"$f":"IFERROR(INDEX(tblClassList[],MATCH(SUMPRODUCT((tblClassList[DAY]=tblSchedule[[#Headers],[SUNDAY]])*($B7>=tblClassList[START TIME])*($B7<=tblClassList[END TIME]),tblClassList[UNIQUE]),tblClassList[UNIQUE],0),2),0)","v":0},{"$f":"IFERROR(INDEX(tblClassList[],MATCH(SUMPRODUCT((tblClassList[DAY]=tblSchedule[[#Headers],[MONDAY]])*($B7>=tblClassList[START TIME])*($B7<=tblClassList[END TIME]),tblClassList[UNIQUE]),tblClassList[UNIQUE],0),2),0)","v":"MTH-113"},{"$f":"IFERROR(INDEX(tblClassList[],MATCH(SUMPRODUCT((tblClassList[DAY]=tblSchedule[[#Headers],[TUESDAY]])*($B7>=tblClassList[START TIME])*($B7<=tblClassList[END TIME]),tblClassList[UNIQUE]),tblClassList[UNIQUE],0),2),0)","v":0},{"$f":"IFERROR(INDEX(tblClassList[],MATCH(SUMPRODUCT((tblClassList[DAY]=tblSchedule[[#Headers],[WEDNESDAY]])*($B7>=tblClassList[START TIME])*($B7<=tblClassList[END TIME]),tblClassList[UNIQUE]),tblClassList[UNIQUE],0),2),0)","v":"MTH-113"},{"$f":"IFERROR(INDEX(tblClassList[],MATCH(SUMPRODUCT((tblClassList[DAY]=tblSchedule[[#Headers],[THURSDAY]])*($B7>=tblClassList[START TIME])*($B7<=tblClassList[END TIME]),tblClassList[UNIQUE]),tblClassList[UNIQUE],0),2),0)","v":0},{"$f":"IFERROR(INDEX(tblClassList[],MATCH(SUMPRODUCT((tblClassList[DAY]=tblSchedule[[#Headers],[FRIDAY]])*($B7>=tblClassList[START TIME])*($B7<=tblClassList[END TIME]),tblClassList[UNIQUE]),tblClassList[UNIQUE],0),2),0)","v":"MTH-113"},{"$f":"IFERROR(INDEX(tblClassList[],MATCH(SUMPRODUCT((tblClassList[DAY]=tblSchedule[[#Headers],[SATURDAY]])*($B7>=tblClassList[START TIME])*($B7<=tblClassList[END TIME]),tblClassList[UNIQUE]),tblClassList[UNIQUE],0),2),0)","v":0}]
[null,"09:00:00",{"$f":"IFERROR(INDEX(tblClassList[],MATCH(SUMPRODUCT((tblClassList[DAY]=tblSchedule[[#Headers],[SUNDAY]])*($B8>=tblClassList[START TIME])*($B8<=tblClassList[END TIME]),tblClassList[UNIQUE]),tblClassList[UNIQUE],0),2),0)","v":0},{"$f":"IFERROR(INDEX(tblClassList[],MATCH(SUMPRODUCT((tblClassList[DAY]=tblSchedule[[#Headers],[MONDAY]])*($B8>=tblClassList[START TIME])*($B8<=tblClassList[END TIME]),tblClassList[UNIQUE]),tblClassList[UNIQUE],0),2),0)","v":"MTH-113"},{"$f":"IFERROR(INDEX(tblClassList[],MATCH(SUMPRODUCT((tblClassList[DAY]=tblSchedule[[#Headers],[TUESDAY]])*($B8>=tblClassList[START TIME])*($B8<=tblClassList[END TIME]),tblClassList[UNIQUE]),tblClassList[UNIQUE],0),2),0)","v":0},{"$f":"IFERROR(INDEX(tblClassList[],MATCH(SUMPRODUCT((tblClassList[DAY]=tblSchedule[[#Headers],[WEDNESDAY]])*($B8>=tblClassList[START TIME])*($B8<=tblClassList[END TIME]),tblClassList[UNIQUE]),tblClassList[UNIQUE],0),2),0)","v":"MTH-113"},{"$f":"IFERROR(INDEX(tblClassList[],MATCH(SUMPRODUCT((tblClassList[DAY]=tblSchedule[[#Headers],[THURSDAY]])*($B8>=tblClassList[START TIME])*($B8<=tblClassList[END TIME]),tblClassList[UNIQUE]),tblClassList[UNIQUE],0),2),0)","v":0},{"$f":"IFERROR(INDEX(tblClassList[],MATCH(SUMPRODUCT((tblClassList[DAY]=tblSchedule[[#Headers],[FRIDAY]])*($B8>=tblClassList[START TIME])*($B8<=tblClassList[END TIME]),tblClassList[UNIQUE]),tblClassList[UNIQUE],0),2),0)","v":"MTH-113"},{"$f":"IFERROR(INDEX(tblClassList[],MATCH(SUMPRODUCT((tblClassList[DAY]=tblSchedule[[#Headers],[SATURDAY]])*($B8>=tblClassList[START TIME])*($B8<=tblClassList[END TIME]),tblClassList[UNIQUE]),tblClassList[UNIQUE],0),2),0)","v":0}]
[null,"09:15:00",{"$f":"IFERROR(INDEX(tblClassList[],MATCH(SUMPRODUCT((tblClassList[DAY]=tblSchedule[[#Headers],[SUNDAY]])*($B9>=tblClassList[START TIME])*($B9<=tblClassList[END TIME]),tblClassList[UNIQUE]),tblClassList[UNIQUE],0),2),0)","v":0},{"$f":"IFERROR(INDEX(tblClassList[],MATCH(SUMPRODUCT((tblClassList[DAY]=tblSchedule[[#Headers],[MONDAY]])*($B9>=tblClassList[START TIME])*($B9<=tblClassList[END TIME]),tblClassList[UNIQUE]),tblClassList[UNIQUE],0),2),0)","v":"MTH-113"},{"$f":"IFERROR(INDEX(tblClassList[],MATCH(SUMPRODUCT((tblClassList[DAY]=tblSchedule[[#Headers],[TUESDAY]])*($B9>=tblClassList[START TIME])*($B9<=tblClassList[END TIME]),tblClassList[UNIQUE]),tblClassList[UNIQUE],0),2),0)","v":0},{"$f":"IFERROR(INDEX(tblClassList[],MATCH(SUMPRODUCT((tblClassList[DAY]=tblSchedule[[#Headers],[WEDNESDAY]])*($B9>=tblClassList[START TIME])*($B9<=tblClassList[END TIME]),tblClassList[UNIQUE]),tblClassList[UNIQUE],0),2),0)","v":"MTH-113"},{"$f":"IFERROR(INDEX(tblClassList[],MATCH(SUMPRODUCT((tblClassList[DAY]=tblSchedule[[#Headers],[THURSDAY]])*($B9>=tblClassList[START TIME])*($B9<=tblClassList[END TIME]),tblClassList[UNIQUE]),tblClassList[UNIQUE],0),2),0)","v":0},{"$f":"IFERROR(INDEX(tblClassList[],MATCH(SUMPRODUCT((tblClassList[DAY]=tblSchedule[[#Headers],[FRIDAY]])*($B9>=tblClassList[START TIME])*($B9<=tblClassList[END TIME]),tblClassList[UNIQUE]),tblClassList[UNIQUE],0),2),0)","v":"MTH-113"},{"$f":"IFERROR(INDEX(tblClassList[],MATCH(SUMPRODUCT((tblClassList[DAY]=tblSchedule[[#Headers],[SATURDAY]])*($B9>=tblClassList[START TIME])*($B9<=tblClassList[END TIME]),tblClassList[UNIQUE]),tblClassList[UNIQUE],0),2),0)","v":0}]
[null,"09:30:00",{"$f":"IFERROR(INDEX(tblClassList[],MATCH(SUMPRODUCT((tblClassList[DAY]=tblSchedule[[#Headers],[SUNDAY]])*($B10>=tblClassList[START TIME])*($B10<=tblClassList[END TIME]),tblClassList[UNIQUE]),tblClassList[UNIQUE],0),2),0)","v":0},{"$f":"IFERROR(INDEX(tblClassList[],MATCH(SUMPRODUCT((tblClassList[DAY]=tblSchedule[[#Headers],[MONDAY]])*($B10>=tblClassList[START TIME])*($B10<=tblClassList[END TIME]),tblClassList[UNIQUE]),tblClassList[UNIQUE],0),2),0)","v":0},{"$f":"IFERROR(INDEX(tblClassList[],MATCH(SUMPRODUCT((tblClassList[DAY]=tblSchedule[[#Headers],[TUESDAY]])*($B10>=tblClassList[START TIME])*($B10<=tblClassList[END TIME]),tblClassList[UNIQUE]),tblClassList[UNIQUE],0),2),0)","v":0},{"$f":"IFERROR(INDEX(tblClassList[],MATCH(SUMPRODUCT((tblClassList[DAY]=tblSchedule[[#Headers],[WEDNESDAY]])*($B10>=tblClassList[START TIME])*($B10<=tblClassList[END TIME]),tblClassList[UNIQUE]),tblClassList[UNIQUE],0),2),0)","v":0},{"$f":"IFERROR(INDEX(tblClassList[],MATCH(SUMPRODUCT((tblClassList[DAY]=tblSchedule[[#Headers],[THURSDAY]])*($B10>=tblClassList[START TIME])*($B10<=tblClassList[END TIME]),tblClassList[UNIQUE]),tblClassList[UNIQUE],0),2),0)","v":0},{"$f":"IFERROR(INDEX(tblClassList[],MATCH(SUMPRODUCT((tblClassList[DAY]=tblSchedule[[#Headers],[FRIDAY]])*($B10>=tblClassList[START TIME])*($B10<=tblClassList[END TIME]),tblClassList[UNIQUE]),tblClassList[UNIQUE],0),2),0)","v":0},{"$f":"IFERROR(INDEX(tblClassList[],MATCH(SUMPRODUCT((tblClassList[DAY]=tblSchedule[[#Headers],[SATURDAY]])*($B10>=tblClassList[START TIME])*($B10<=tblClassList[END TIME]),tblClassList[UNIQUE]),tblClassList[UNIQUE],0),2),0)","v":0}]
[null,"09:45:00",{"$f":"IFERROR(INDEX(tblClassList[],MATCH(SUMPRODUCT((tblClassList[DAY]=tblSchedule[[#Headers],[SUNDAY]])*($B11>=tblClassList[START TIME])*($B11<=tblClassList[END TIME]),tblClassList[UNIQUE]),tblClassList[UNIQUE],0),2),0)","v":0},{"$f":"IFERROR(INDEX(tblClassList[],MATCH(SUMPRODUCT((tblClassList[DAY]=tblSchedule[[#Headers],[MONDAY]])*($B11>=tblClassList[START TIME])*($B11<=tblClassList[END TIME]),tblClassList[UNIQUE]),tblClassList[UNIQUE],0),2),0)","v":0},{"$f":"IFERROR(INDEX(tblClassList[],MATCH(SUMPRODUCT((tblClassList[DAY]=tblSchedule[[#Headers],[TUESDAY]])*($B11>=tblClassList[START TIME])*($B11<=tblClassList[END TIME]),tblClassList[UNIQUE]),tblClassList[UNIQUE],0),2),0)","v":0},{"$f":"IFERROR(INDEX(tblClassList[],MATCH(SUMPRODUCT((tblClassList[DAY]=tblSchedule[[#Headers],[WEDNESDAY]])*($B11>=tblClassList[START TIME])*($B11<=tblClassList[END TIME]),tblClassList[UNIQUE]),tblClassList[UNIQUE],0),2),0)","v":0},{"$f":"IFERROR(INDEX(tblClassList[],MATCH(SUMPRODUCT((tblClassList[DAY]=tblSchedule[[#Headers],[THURSDAY]])*($B11>=tblClassList[START TIME])*($B11<=tblClassList[END TIME]),tblClassList[UNIQUE]),tblClassList[UNIQUE],0),2),0)","v":0},{"$f":"IFERROR(INDEX(tblClassList[],MATCH(SUMPRODUCT((tblClassList[DAY]=tblSchedule[[#Headers],[FRIDAY]])*($B11>=tblClassList[START TIME])*($B11<=tblClassList[END TIME]),tblClassList[UNIQUE]),tblClassList[UNIQUE],0),2),0)","v":0},{"$f":"IFERROR(INDEX(tblClassList[],MATCH(SUMPRODUCT((tblClassList[DAY]=tblSchedule[[#Headers],[SATURDAY]])*($B11>=tblClassList[START TIME])*($B11<=tblClassList[END TIME]),tblClassList[UNIQUE]),tblClassList[UNIQUE],0),2),0)","v":0}]
[null,"10:00:00",{"$f":"IFERROR(INDEX(tblClassList[],MATCH(SUMPRODUCT((tblClassList[DAY]=tblSchedule[[#Headers],[SUNDAY]])*($B12>=tblClassList[START TIME])*($B12<=tblClassList[END TIME]),tblClassList[UNIQUE]),tblClassList[UNIQUE],0),2),0)","v":0},{"$f":"IFERROR(INDEX(tblClassList[],MATCH(SUMPRODUCT((tblClassList[DAY]=tblSchedule[[#Headers],[MONDAY]])*($B12>=tblClassList[START TIME])*($B12<=tblClassList[END TIME]),tblClassList[UNIQUE]),tblClassList[UNIQUE],0),2),0)","v":0},{"$f":"IFERROR(INDEX(tblClassList[],MATCH(SUMPRODUCT((tblClassList[DAY]=tblSchedule[[#Headers],[TUESDAY]])*($B12>=tblClassList[START TIME])*($B12<=tblClassList[END TIME]),tblClassList[UNIQUE]),tblClassList[UNIQUE],0),2),0)","v":0},{"$f":"IFERROR(INDEX(tblClassList[],MATCH(SUMPRODUCT((tblClassList[DAY]=tblSchedule[[#Headers],[WEDNESDAY]])*($B12>=tblClassList[START TIME])*($B12<=tblClassList[END TIME]),tblClassList[UNIQUE]),tblClassList[UNIQUE],0),2),0)","v":0},{"$f":"IFERROR(INDEX(tblClassList[],MATCH(SUMPRODUCT((tblClassList[DAY]=tblSchedule[[#Headers],[THURSDAY]])*($B12>=tblClassList[START TIME])*($B12<=tblClassList[END TIME]),tblClassList[UNIQUE]),tblClassList[UNIQUE],0),2),0)","v":0},{"$f":"IFERROR(INDEX(tblClassList[],MATCH(SUMPRODUCT((tblClassList[DAY]=tblSchedule[[#Headers],[FRIDAY]])*($B12>=tblClassList[START TIME])*($B12<=tblClassList[END TIME]),tblClassList[UNIQUE]),tblClassList[UNIQUE],0),2),0)","v":0},{"$f":"IFERROR(INDEX(tblClassList[],MATCH(SUMPRODUCT((tblClassList[DAY]=tblSchedule[[#Headers],[SATURDAY]])*($B12>=tblClassList[START TIME])*($B12<=tblClassList[END TIME]),tblClassList[UNIQUE]),tblClassList[UNIQUE],0),2),0)","v":0}]
[null,"10:15:00",{"$f":"IFERROR(INDEX(tblClassList[],MATCH(SUMPRODUCT((tblClassList[DAY]=tblSchedule[[#Headers],[SUNDAY]])*($B13>=tblClassList[START TIME])*($B13<=tblClassList[END TIME]),tblClassList[UNIQUE]),tblClassList[UNIQUE],0),2),0)","v":0},{"$f":"IFERROR(INDEX(tblClassList[],MATCH(SUMPRODUCT((tblClassList[DAY]=tblSchedule[[#Headers],[MONDAY]])*($B13>=tblClassList[START TIME])*($B13<=tblClassList[END TIME]),tblClassList[UNIQUE]),tblClassList[UNIQUE],0),2),0)","v":0},{"$f":"IFERROR(INDEX(tblClassList[],MATCH(SUMPRODUCT((tblClassList[DAY]=tblSchedule[[#Headers],[TUESDAY]])*($B13>=tblClassList[START TIME])*($B13<=tblClassList[END TIME]),tblClassList[UNIQUE]),tblClassList[UNIQUE],0),2),0)","v":0},{"$f":"IFERROR(INDEX(tblClassList[],MATCH(SUMPRODUCT((tblClassList[DAY]=tblSchedule[[#Headers],[WEDNESDAY]])*($B13>=tblClassList[START TIME])*($B13<=tblClassList[END TIME]),tblClassList[UNIQUE]),tblClassList[UNIQUE],0),2),0)","v":0},{"$f":"IFERROR(INDEX(tblClassList[],MATCH(SUMPRODUCT((tblClassList[DAY]=tblSchedule[[#Headers],[THURSDAY]])*($B13>=tblClassList[START TIME])*($B13<=tblClassList[END TIME]),tblClassList[UNIQUE]),tblClassList[UNIQUE],0),2),0)","v":0},{"$f":"IFERROR(INDEX(tblClassList[],MATCH(SUMPRODUCT((tblClassList[DAY]=tblSchedule[[#Headers],[FRIDAY]])*($B13>=tblClassList[START TIME])*($B13<=tblClassList[END TIME]),tblClassList[UNIQUE]),tblClassList[UNIQUE],0),2),0)","v":0},{"$f":"IFERROR(INDEX(tblClassList[],MATCH(SUMPRODUCT((tblClassList[DAY]=tblSchedule[[#Headers],[SATURDAY]])*($B13>=tblClassList[START TIME])*($B13<=tblClassList[END TIME]),tblClassList[UNIQUE]),tblClassList[UNIQUE],0),2),0)","v":0}]
[null,"10:30:00",{"$f":"IFERROR(INDEX(tblClassList[],MATCH(SUMPRODUCT((tblClassList[DAY]=tblSchedule[[#Headers],[SUNDAY]])*($B14>=tblClassList[START TIME])*($B14<=tblClassList[END TIME]),tblClassList[UNIQUE]),tblClassList[UNIQUE],0),2),0)","v":0},{"$f":"IFERROR(INDEX(tblClassList[],MATCH(SUMPRODUCT((tblClassList[DAY]=tblSchedule[[#Headers],[MONDAY]])*($B14>=tblClassList[START TIME])*($B14<=tblClassList[END TIME]),tblClassList[UNIQUE]),tblClassList[UNIQUE],0),2),0)","v":0},{"$f":"IFERROR(INDEX(tblClassList[],MATCH(SUMPRODUCT((tblClassList[DAY]=tblSchedule[[#Headers],[TUESDAY]])*($B14>=tblClassList[START TIME])*($B14<=tblClassList[END TIME]),tblClassList[UNIQUE]),tblClassList[UNIQUE],0),2),0)","v":0},{"$f":"IFERROR(INDEX(tblClassList[],MATCH(SUMPRODUCT((tblClassList[DAY]=tblSchedule[[#Headers],[WEDNESDAY]])*($B14>=tblClassList[START TIME])*($B14<=tblClassList[END TIME]),tblClassList[UNIQUE]),tblClassList[UNIQUE],0),2),0)","v":0},{"$f":"IFERROR(INDEX(tblClassList[],MATCH(SUMPRODUCT((tblClassList[DAY]=tblSchedule[[#Headers],[THURSDAY]])*($B14>=tblClassList[START TIME])*($B14<=tblClassList[END TIME]),tblClassList[UNIQUE]),tblClassList[UNIQUE],0),2),0)","v":0},{"$f":"IFERROR(INDEX(tblClassList[],MATCH(SUMPRODUCT((tblClassList[DAY]=tblSchedule[[#Headers],[FRIDAY]])*($B14>=tblClassList[START TIME])*($B14<=tblClassList[END TIME]),tblClassList[UNIQUE]),tblClassList[UNIQUE],0),2),0)","v":0},{"$f":"IFERROR(INDEX(tblClassList[],MATCH(SUMPRODUCT((tblClassList[DAY]=tblSchedule[[#Headers],[SATURDAY]])*($B14>=tblClassList[START TIME])*($B14<=tblClassList[END TIME]),tblClassList[UNIQUE]),tblClassList[UNIQUE],0),2),0)","v":0}]
[null,"10:45:00",{"$f":"IFERROR(INDEX(tblClassList[],MATCH(SUMPRODUCT((tblClassList[DAY]=tblSchedule[[#Headers],[SUNDAY]])*($B15>=tblClassList[START TIME])*($B15<=tblClassList[END TIME]),tblClassList[UNIQUE]),tblClassList[UNIQUE],0),2),0)","v":0},{"$f":"IFERROR(INDEX(tblClassList[],MATCH(SUMPRODUCT((tblClassList[DAY]=tblSchedule[[#Headers],[MONDAY]])*($B15>=tblClassList[START TIME])*($B15<=tblClassList[END TIME]),tblClassList[UNIQUE]),tblClassList[UNIQUE],0),2),0)","v":0},{"$f":"IFERROR(INDEX(tblClassList[],MATCH(SUMPRODUCT((tblClassList[DAY]=tblSchedule[[#Headers],[TUESDAY]])*($B15>=tblClassList[START TIME])*($B15<=tblClassList[END TIME]),tblClassList[UNIQUE]),tblClassList[UNIQUE],0),2),0)","v":0},{"$f":"IFERROR(INDEX(tblClassList[],MATCH(SUMPRODUCT((tblClassList[DAY]=tblSchedule[[#Headers],[WEDNESDAY]])*($B15>=tblClassList[START TIME])*($B15<=tblClassList[END TIME]),tblClassList[UNIQUE]),tblClassList[UNIQUE],0),2),0)","v":0},{"$f":"IFERROR(INDEX(tblClassList[],MATCH(SUMPRODUCT((tblClassList[DAY]=tblSchedule[[#Headers],[THURSDAY]])*($B15>=tblClassList[START TIME])*($B15<=tblClassList[END TIME]),tblClassList[UNIQUE]),tblClassList[UNIQUE],0),2),0)","v":0},{"$f":"IFERROR(INDEX(tblClassList[],MATCH(SUMPRODUCT((tblClassList[DAY]=tblSchedule[[#Headers],[FRIDAY]])*($B15>=tblClassList[START TIME])*($B15<=tblClassList[END TIME]),tblClassList[UNIQUE]),tblClassList[UNIQUE],0),2),0)","v":0},{"$f":"IFERROR(INDEX(tblClassList[],MATCH(SUMPRODUCT((tblClassList[DAY]=tblSchedule[[#Headers],[SATURDAY]])*($B15>=tblClassList[START TIME])*($B15<=tblClassList[END TIME]),tblClassList[UNIQUE]),tblClassList[UNIQUE],0),2),0)","v":0}]
[null,"11:00:00",{"$f":"IFERROR(INDEX(tblClassList[],MATCH(SUMPRODUCT((tblClassList[DAY]=tblSchedule[[#Headers],[SUNDAY]])*($B16>=tblClassList[START TIME])*($B16<=tblClassList[END TIME]),tblClassList[UNIQUE]),tblClassList[UNIQUE],0),2),0)","v":0},{"$f":"IFERROR(INDEX(tblClassList[],MATCH(SUMPRODUCT((tblClassList[DAY]=tblSchedule[[#Headers],[MONDAY]])*($B16>=tblClassList[START TIME])*($B16<=tblClassList[END TIME]),tblClassList[UNIQUE]),tblClassList[UNIQUE],0),2),0)","v":0},{"$f":"IFERROR(INDEX(tblClassList[],MATCH(SUMPRODUCT((tblClassList[DAY]=tblSchedule[[#Headers],[TUESDAY]])*($B16>=tblClassList[START TIME])*($B16<=tblClassList[END TIME]),tblClassList[UNIQUE]),tblClassList[UNIQUE],0),2),0)","v":"HPE-295"},{"$f":"IFERROR(INDEX(tblClassList[],MATCH(SUMPRODUCT((tblClassList[DAY]=tblSchedule[[#Headers],[WEDNESDAY]])*($B16>=tblClassList[START TIME])*($B16<=tblClassList[END TIME]),tblClassList[UNIQUE]),tblClassList[UNIQUE],0),2),0)","v":0},{"$f":"IFERROR(INDEX(tblClassList[],MATCH(SUMPRODUCT((tblClassList[DAY]=tblSchedule[[#Headers],[THURSDAY]])*($B16>=tblClassList[START TIME])*($B16<=tblClassList[END TIME]),tblClassList[UNIQUE]),tblClassList[UNIQUE],0),2),0)","v":"HPE-295"},{"$f":"IFERROR(INDEX(tblClassList[],MATCH(SUMPRODUCT((tblClassList[DAY]=tblSchedule[[#Headers],[FRIDAY]])*($B16>=tblClassList[START TIME])*($B16<=tblClassList[END TIME]),tblClassList[UNIQUE]),tblClassList[UNIQUE],0),2),0)","v":0},{"$f":"IFERROR(INDEX(tblClassList[],MATCH(SUMPRODUCT((tblClassList[DAY]=tblSchedule[[#Headers],[SATURDAY]])*($B16>=tblClassList[START TIME])*($B16<=tblClassList[END TIME]),tblClassList[UNIQUE]),tblClassList[UNIQUE],0),2),0)","v":0}]
[null,"11:15:00",{"$f":"IFERROR(INDEX(tblClassList[],MATCH(SUMPRODUCT((tblClassList[DAY]=tblSchedule[[#Headers],[SUNDAY]])*($B17>=tblClassList[START TIME])*($B17<=tblClassList[END TIME]),tblClassList[UNIQUE]),tblClassList[UNIQUE],0),2),0)","v":0},{"$f":"IFERROR(INDEX(tblClassList[],MATCH(SUMPRODUCT((tblClassList[DAY]=tblSchedule[[#Headers],[MONDAY]])*($B17>=tblClassList[START TIME])*($B17<=tblClassList[END TIME]),tblClassList[UNIQUE]),tblClassList[UNIQUE],0),2),0)","v":0},{"$f":"IFERROR(INDEX(tblClassList[],MATCH(SUMPRODUCT((tblClassList[DAY]=tblSchedule[[#Headers],[TUESDAY]])*($B17>=tblClassList[START TIME])*($B17<=tblClassList[END TIME]),tblClassList[UNIQUE]),tblClassList[UNIQUE],0),2),0)","v":"HPE-295"},{"$f":"IFERROR(INDEX(tblClassList[],MATCH(SUMPRODUCT((tblClassList[DAY]=tblSchedule[[#Headers],[WEDNESDAY]])*($B17>=tblClassList[START TIME])*($B17<=tblClassList[END TIME]),tblClassList[UNIQUE]),tblClassList[UNIQUE],0),2),0)","v":0},{"$f":"IFERROR(INDEX(tblClassList[],MATCH(SUMPRODUCT((tblClassList[DAY]=tblSchedule[[#Headers],[THURSDAY]])*($B17>=tblClassList[START TIME])*($B17<=tblClassList[END TIME]),tblClassList[UNIQUE]),tblClassList[UNIQUE],0),2),0)","v":"HPE-295"},{"$f":"IFERROR(INDEX(tblClassList[],MATCH(SUMPRODUCT((tblClassList[DAY]=tblSchedule[[#Headers],[FRIDAY]])*($B17>=tblClassList[START TIME])*($B17<=tblClassList[END TIME]),tblClassList[UNIQUE]),tblClassList[UNIQUE],0),2),0)","v":0},{"$f":"IFERROR(INDEX(tblClassList[],MATCH(SUMPRODUCT((tblClassList[DAY]=tblSchedule[[#Headers],[SATURDAY]])*($B17>=tblClassList[START TIME])*($B17<=tblClassList[END TIME]),tblClassList[UNIQUE]),tblClassList[UNIQUE],0),2),0)","v":0}]
[null,"11:30:00",{"$f":"IFERROR(INDEX(tblClassList[],MATCH(SUMPRODUCT((tblClassList[DAY]=tblSchedule[[#Headers],[SUNDAY]])*($B18>=tblClassList[START TIME])*($B18<=tblClassList[END TIME]),tblClassList[UNIQUE]),tblClassList[UNIQUE],0),2),0)","v":0},{"$f":"IFERROR(INDEX(tblClassList[],MATCH(SUMPRODUCT((tblClassList[DAY]=tblSchedule[[#Headers],[MONDAY]])*($B18>=tblClassList[START TIME])*($B18<=tblClassList[END TIME]),tblClassList[UNIQUE]),tblClassList[UNIQUE],0),2),0)","v":0},{"$f":"IFERROR(INDEX(tblClassList[],MATCH(SUMPRODUCT((tblClassList[DAY]=tblSchedule[[#Headers],[TUESDAY]])*($B18>=tblClassList[START TIME])*($B18<=tblClassList[END TIME]),tblClassList[UNIQUE]),tblClassList[UNIQUE],0),2),0)","v":"HPE-295"},{"$f":"IFERROR(INDEX(tblClassList[],MATCH(SUMPRODUCT((tblClassList[DAY]=tblSchedule[[#Headers],[WEDNESDAY]])*($B18>=tblClassList[START TIME])*($B18<=tblClassList[END TIME]),tblClassList[UNIQUE]),tblClassList[UNIQUE],0),2),0)","v":0},{"$f":"IFERROR(INDEX(tblClassList[],MATCH(SUMPRODUCT((tblClassList[DAY]=tblSchedule[[#Headers],[THURSDAY]])*($B18>=tblClassList[START TIME])*($B18<=tblClassList[END TIME]),tblClassList[UNIQUE]),tblClassList[UNIQUE],0),2),0)","v":"HPE-295"},{"$f":"IFERROR(INDEX(tblClassList[],MATCH(SUMPRODUCT((tblClassList[DAY]=tblSchedule[[#Headers],[FRIDAY]])*($B18>=tblClassList[START TIME])*($B18<=tblClassList[END TIME]),tblClassList[UNIQUE]),tblClassList[UNIQUE],0),2),0)","v":0},{"$f":"IFERROR(INDEX(tblClassList[],MATCH(SUMPRODUCT((tblClassList[DAY]=tblSchedule[[#Headers],[SATURDAY]])*($B18>=tblClassList[START TIME])*($B18<=tblClassList[END TIME]),tblClassList[UNIQUE]),tblClassList[UNIQUE],0),2),0)","v":0}]
[null,"11:45:00",{"$f":"IFERROR(INDEX(tblClassList[],MATCH(SUMPRODUCT((tblClassList[DAY]=tblSchedule[[#Headers],[SUNDAY]])*($B19>=tblClassList[START TIME])*($B19<=tblClassList[END TIME]),tblClassList[UNIQUE]),tblClassList[UNIQUE],0),2),0)","v":0},{"$f":"IFERROR(INDEX(tblClassList[],MATCH(SUMPRODUCT((tblClassList[DAY]=tblSchedule[[#Headers],[MONDAY]])*($B19>=tblClassList[START TIME])*($B19<=tblClassList[END TIME]),tblClassList[UNIQUE]),tblClassList[UNIQUE],0),2),0)","v":0},{"$f":"IFERROR(INDEX(tblClassList[],MATCH(SUMPRODUCT((tblClassList[DAY]=tblSchedule[[#Headers],[TUESDAY]])*($B19>=tblClassList[START TIME])*($B19<=tblClassList[END TIME]),tblClassList[UNIQUE]),tblClassList[UNIQUE],0),2),0)","v":"HPE-295"},{"$f":"IFERROR(INDEX(tblClassList[],MATCH(SUMPRODUCT((tblClassList[DAY]=tblSchedule[[#Headers],[WEDNESDAY]])*($B19>=tblClassList[START TIME])*($B19<=tblClassList[END TIME]),tblClassList[UNIQUE]),tblClassList[UNIQUE],0),2),0)","v":0},{"$f":"IFERROR(INDEX(tblClassList[],MATCH(SUMPRODUCT((tblClassList[DAY]=tblSchedule[[#Headers],[THURSDAY]])*($B19>=tblClassList[START TIME])*($B19<=tblClassList[END TIME]),tblClassList[UNIQUE]),tblClassList[UNIQUE],0),2),0)","v":"HPE-295"},{"$f":"IFERROR(INDEX(tblClassList[],MATCH(SUMPRODUCT((tblClassList[DAY]=tblSchedule[[#Headers],[FRIDAY]])*($B19>=tblClassList[START TIME])*($B19<=tblClassList[END TIME]),tblClassList[UNIQUE]),tblClassList[UNIQUE],0),2),0)","v":0},{"$f":"IFERROR(INDEX(tblClassList[],MATCH(SUMPRODUCT((tblClassList[DAY]=tblSchedule[[#Headers],[SATURDAY]])*($B19>=tblClassList[START TIME])*($B19<=tblClassList[END TIME]),tblClassList[UNIQUE]),tblClassList[UNIQUE],0),2),0)","v":0}]
[null,"12:00:00",{"$f":"IFERROR(INDEX(tblClassList[],MATCH(SUMPRODUCT((tblClassList[DAY]=tblSchedule[[#Headers],[SUNDAY]])*($B20>=tblClassList[START TIME])*($B20<=tblClassList[END TIME]),tblClassList[UNIQUE]),tblClassList[UNIQUE],0),2),0)","v":0},{"$f":"IFERROR(INDEX(tblClassList[],MATCH(SUMPRODUCT((tblClassList[DAY]=tblSchedule[[#Headers],[MONDAY]])*($B20>=tblClassList[START TIME])*($B20<=tblClassList[END TIME]),tblClassList[UNIQUE]),tblClassList[UNIQUE],0),2),0)","v":0},{"$f":"IFERROR(INDEX(tblClassList[],MATCH(SUMPRODUCT((tblClassList[DAY]=tblSchedule[[#Headers],[TUESDAY]])*($B20>=tblClassList[START TIME])*($B20<=tblClassList[END TIME]),tblClassList[UNIQUE]),tblClassList[UNIQUE],0),2),0)","v":"HPE-295"},{"$f":"IFERROR(INDEX(tblClassList[],MATCH(SUMPRODUCT((tblClassList[DAY]=tblSchedule[[#Headers],[WEDNESDAY]])*($B20>=tblClassList[START TIME])*($B20<=tblClassList[END TIME]),tblClassList[UNIQUE]),tblClassList[UNIQUE],0),2),0)","v":0},{"$f":"IFERROR(INDEX(tblClassList[],MATCH(SUMPRODUCT((tblClassList[DAY]=tblSchedule[[#Headers],[THURSDAY]])*($B20>=tblClassList[START TIME])*($B20<=tblClassList[END TIME]),tblClassList[UNIQUE]),tblClassList[UNIQUE],0),2),0)","v":"HPE-295"},{"$f":"IFERROR(INDEX(tblClassList[],MATCH(SUMPRODUCT((tblClassList[DAY]=tblSchedule[[#Headers],[FRIDAY]])*($B20>=tblClassList[START TIME])*($B20<=tblClassList[END TIME]),tblClassList[UNIQUE]),tblClassList[UNIQUE],0),2),0)","v":0},{"$f":"IFERROR(INDEX(tblClassList[],MATCH(SUMPRODUCT((tblClassList[DAY]=tblSchedule[[#Headers],[SATURDAY]])*($B20>=tblClassList[START TIME])*($B20<=tblClassList[END TIME]),tblClassList[UNIQUE]),tblClassList[UNIQUE],0),2),0)","v":0}]
[null,"12:15:00",{"$f":"IFERROR(INDEX(tblClassList[],MATCH(SUMPRODUCT((tblClassList[DAY]=tblSchedule[[#Headers],[SUNDAY]])*($B21>=tblClassList[START TIME])*($B21<=tblClassList[END TIME]),tblClassList[UNIQUE]),tblClassList[UNIQUE],0),2),0)","v":0},{"$f":"IFERROR(INDEX(tblClassList[],MATCH(SUMPRODUCT((tblClassList[DAY]=tblSchedule[[#Headers],[MONDAY]])*($B21>=tblClassList[START TIME])*($B21<=tblClassList[END TIME]),tblClassList[UNIQUE]),tblClassList[UNIQUE],0),2),0)","v":0},{"$f":"IFERROR(INDEX(tblClassList[],MATCH(SUMPRODUCT((tblClassList[DAY]=tblSchedule[[#Headers],[TUESDAY]])*($B21>=tblClassList[START TIME])*($B21<=tblClassList[END TIME]),tblClassList[UNIQUE]),tblClassList[UNIQUE],0),2),0)","v":0},{"$f":"IFERROR(INDEX(tblClassList[],MATCH(SUMPRODUCT((tblClassList[DAY]=tblSchedule[[#Headers],[WEDNESDAY]])*($B21>=tblClassList[START TIME])*($B21<=tblClassList[END TIME]),tblClassList[UNIQUE]),tblClassList[UNIQUE],0),2),0)","v":0},{"$f":"IFERROR(INDEX(tblClassList[],MATCH(SUMPRODUCT((tblClassList[DAY]=tblSchedule[[#Headers],[THURSDAY]])*($B21>=tblClassList[START TIME])*($B21<=tblClassList[END TIME]),tblClassList[UNIQUE]),tblClassList[UNIQUE],0),2),0)","v":0},{"$f":"IFERROR(INDEX(tblClassList[],MATCH(SUMPRODUCT((tblClassList[DAY]=tblSchedule[[#Headers],[FRIDAY]])*($B21>=tblClassList[START TIME])*($B21<=tblClassList[END TIME]),tblClassList[UNIQUE]),tblClassList[UNIQUE],0),2),0)","v":0},{"$f":"IFERROR(INDEX(tblClassList[],MATCH(SUMPRODUCT((tblClassList[DAY]=tblSchedule[[#Headers],[SATURDAY]])*($B21>=tblClassList[START TIME])*($B21<=tblClassList[END TIME]),tblClassList[UNIQUE]),tblClassList[UNIQUE],0),2),0)","v":0}]
[null,"12:30:00",{"$f":"IFERROR(INDEX(tblClassList[],MATCH(SUMPRODUCT((tblClassList[DAY]=tblSchedule[[#Headers],[SUNDAY]])*($B22>=tblClassList[START TIME])*($B22<=tblClassList[END TIME]),tblClassList[UNIQUE]),tblClassList[UNIQUE],0),2),0)","v":0},{"$f":"IFERROR(INDEX(tblClassList[],MATCH(SUMPRODUCT((tblClassList[DAY]=tblSchedule[[#Headers],[MONDAY]])*($B22>=tblClassList[START TIME])*($B22<=tblClassList[END TIME]),tblClassList[UNIQUE]),tblClassList[UNIQUE],0),2),0)","v":0},{"$f":"IFERROR(INDEX(tblClassList[],MATCH(SUMPRODUCT((tblClassList[DAY]=tblSchedule[[#Headers],[TUESDAY]])*($B22>=tblClassList[START TIME])*($B22<=tblClassList[END TIME]),tblClassList[UNIQUE]),tblClassList[UNIQUE],0),2),0)","v":0},{"$f":"IFERROR(INDEX(tblClassList[],MATCH(SUMPRODUCT((tblClassList[DAY]=tblSchedule[[#Headers],[WEDNESDAY]])*($B22>=tblClassList[START TIME])*($B22<=tblClassList[END TIME]),tblClassList[UNIQUE]),tblClassList[UNIQUE],0),2),0)","v":0},{"$f":"IFERROR(INDEX(tblClassList[],MATCH(SUMPRODUCT((tblClassList[DAY]=tblSchedule[[#Headers],[THURSDAY]])*($B22>=tblClassList[START TIME])*($B22<=tblClassList[END TIME]),tblClassList[UNIQUE]),tblClassList[UNIQUE],0),2),0)","v":0},{"$f":"IFERROR(INDEX(tblClassList[],MATCH(SUMPRODUCT((tblClassList[DAY]=tblSchedule[[#Headers],[FRIDAY]])*($B22>=tblClassList[START TIME])*($B22<=tblClassList[END TIME]),tblClassList[UNIQUE]),tblClassList[UNIQUE],0),2),0)","v":0},{"$f":"IFERROR(INDEX(tblClassList[],MATCH(SUMPRODUCT((tblClassList[DAY]=tblSchedule[[#Headers],[SATURDAY]])*($B22>=tblClassList[START TIME])*($B22<=tblClassList[END TIME]),tblClassList[UNIQUE]),tblClassList[UNIQUE],0),2),0)","v":0}]
[null,"12:45:00",{"$f":"IFERROR(INDEX(tblClassList[],MATCH(SUMPRODUCT((tblClassList[DAY]=tblSchedule[[#Headers],[SUNDAY]])*($B23>=tblClassList[START TIME])*($B23<=tblClassList[END TIME]),tblClassList[UNIQUE]),tblClassList[UNIQUE],0),2),0)","v":0},{"$f":"IFERROR(INDEX(tblClassList[],MATCH(SUMPRODUCT((tblClassList[DAY]=tblSchedule[[#Headers],[MONDAY]])*($B23>=tblClassList[START TIME])*($B23<=tblClassList[END TIME]),tblClassList[UNIQUE]),tblClassList[UNIQUE],0),2),0)","v":0},{"$f":"IFERROR(INDEX(tblClassList[],MATCH(SUMPRODUCT((tblClassList[DAY]=tblSchedule[[#Headers],[TUESDAY]])*($B23>=tblClassList[START TIME])*($B23<=tblClassList[END TIME]),tblClassList[UNIQUE]),tblClassList[UNIQUE],0),2),0)","v":0},{"$f":"IFERROR(INDEX(tblClassList[],MATCH(SUMPRODUCT((tblClassList[DAY]=tblSchedule[[#Headers],[WEDNESDAY]])*($B23>=tblClassList[START TIME])*($B23<=tblClassList[END TIME]),tblClassList[UNIQUE]),tblClassList[UNIQUE],0),2),0)","v":0},{"$f":"IFERROR(INDEX(tblClassList[],MATCH(SUMPRODUCT((tblClassList[DAY]=tblSchedule[[#Headers],[THURSDAY]])*($B23>=tblClassList[START TIME])*($B23<=tblClassList[END TIME]),tblClassList[UNIQUE]),tblClassList[UNIQUE],0),2),0)","v":0},{"$f":"IFERROR(INDEX(tblClassList[],MATCH(SUMPRODUCT((tblClassList[DAY]=tblSchedule[[#Headers],[FRIDAY]])*($B23>=tblClassList[START TIME])*($B23<=tblClassList[END TIME]),tblClassList[UNIQUE]),tblClassList[UNIQUE],0),2),0)","v":0},{"$f":"IFERROR(INDEX(tblClassList[],MATCH(SUMPRODUCT((tblClassList[DAY]=tblSchedule[[#Headers],[SATURDAY]])*($B23>=tblClassList[START TIME])*($B23<=tblClassList[END TIME]),tblClassList[UNIQUE]),tblClassList[UNIQUE],0),2),0)","v":0}]
[null,"13:00:00",{"$f":"IFERROR(INDEX(tblClassList[],MATCH(SUMPRODUCT((tblClassList[DAY]=tblSchedule[[#Headers],[SUNDAY]])*($B24>=tblClassList[START TIME])*($B24<=tblClassList[END TIME]),tblClassList[UNIQUE]),tblClassList[UNIQUE],0),2),0)","v":0},{"$f":"IFERROR(INDEX(tblClassList[],MATCH(SUMPRODUCT((tblClassList[DAY]=tblSchedule[[#Headers],[MONDAY]])*($B24>=tblClassList[START TIME])*($B24<=tblClassList[END TIME]),tblClassList[UNIQUE]),tblClassList[UNIQUE],0),2),0)","v":"WR-121"},{"$f":"IFERROR(INDEX(tblClassList[],MATCH(SUMPRODUCT((tblClassList[DAY]=tblSchedule[[#Headers],[TUESDAY]])*($B24>=tblClassList[START TIME])*($B24<=tblClassList[END TIME]),tblClassList[UNIQUE]),tblClassList[UNIQUE],0),2),0)","v":0},{"$f":"IFERROR(INDEX(tblClassList[],MATCH(SUMPRODUCT((tblClassList[DAY]=tblSchedule[[#Headers],[WEDNESDAY]])*($B24>=tblClassList[START TIME])*($B24<=tblClassList[END TIME]),tblClassList[UNIQUE]),tblClassList[UNIQUE],0),2),0)","v":"WR-121"},{"$f":"IFERROR(INDEX(tblClassList[],MATCH(SUMPRODUCT((tblClassList[DAY]=tblSchedule[[#Headers],[THURSDAY]])*($B24>=tblClassList[START TIME])*($B24<=tblClassList[END TIME]),tblClassList[UNIQUE]),tblClassList[UNIQUE],0),2),0)","v":0},{"$f":"IFERROR(INDEX(tblClassList[],MATCH(SUMPRODUCT((tblClassList[DAY]=tblSchedule[[#Headers],[FRIDAY]])*($B24>=tblClassList[START TIME])*($B24<=tblClassList[END TIME]),tblClassList[UNIQUE]),tblClassList[UNIQUE],0),2),0)","v":0},{"$f":"IFERROR(INDEX(tblClassList[],MATCH(SUMPRODUCT((tblClassList[DAY]=tblSchedule[[#Headers],[SATURDAY]])*($B24>=tblClassList[START TIME])*($B24<=tblClassList[END TIME]),tblClassList[UNIQUE]),tblClassList[UNIQUE],0),2),0)","v":0}]
[null,"13:15:00",{"$f":"IFERROR(INDEX(tblClassList[],MATCH(SUMPRODUCT((tblClassList[DAY]=tblSchedule[[#Headers],[SUNDAY]])*($B25>=tblClassList[START TIME])*($B25<=tblClassList[END TIME]),tblClassList[UNIQUE]),tblClassList[UNIQUE],0),2),0)","v":0},{"$f":"IFERROR(INDEX(tblClassList[],MATCH(SUMPRODUCT((tblClassList[DAY]=tblSchedule[[#Headers],[MONDAY]])*($B25>=tblClassList[START TIME])*($B25<=tblClassList[END TIME]),tblClassList[UNIQUE]),tblClassList[UNIQUE],0),2),0)","v":"WR-121"},{"$f":"IFERROR(INDEX(tblClassList[],MATCH(SUMPRODUCT((tblClassList[DAY]=tblSchedule[[#Headers],[TUESDAY]])*($B25>=tblClassList[START TIME])*($B25<=tblClassList[END TIME]),tblClassList[UNIQUE]),tblClassList[UNIQUE],0),2),0)","v":0},{"$f":"IFERROR(INDEX(tblClassList[],MATCH(SUMPRODUCT((tblClassList[DAY]=tblSchedule[[#Headers],[WEDNESDAY]])*($B25>=tblClassList[START TIME])*($B25<=tblClassList[END TIME]),tblClassList[UNIQUE]),tblClassList[UNIQUE],0),2),0)","v":"WR-121"},{"$f":"IFERROR(INDEX(tblClassList[],MATCH(SUMPRODUCT((tblClassList[DAY]=tblSchedule[[#Headers],[THURSDAY]])*($B25>=tblClassList[START TIME])*($B25<=tblClassList[END TIME]),tblClassList[UNIQUE]),tblClassList[UNIQUE],0),2),0)","v":0},{"$f":"IFERROR(INDEX(tblClassList[],MATCH(SUMPRODUCT((tblClassList[DAY]=tblSchedule[[#Headers],[FRIDAY]])*($B25>=tblClassList[START TIME])*($B25<=tblClassList[END TIME]),tblClassList[UNIQUE]),tblClassList[UNIQUE],0),2),0)","v":0},{"$f":"IFERROR(INDEX(tblClassList[],MATCH(SUMPRODUCT((tblClassList[DAY]=tblSchedule[[#Headers],[SATURDAY]])*($B25>=tblClassList[START TIME])*($B25<=tblClassList[END TIME]),tblClassList[UNIQUE]),tblClassList[UNIQUE],0),2),0)","v":0}]
[null,"13:30:00",{"$f":"IFERROR(INDEX(tblClassList[],MATCH(SUMPRODUCT((tblClassList[DAY]=tblSchedule[[#Headers],[SUNDAY]])*($B26>=tblClassList[START TIME])*($B26<=tblClassList[END TIME]),tblClassList[UNIQUE]),tblClassList[UNIQUE],0),2),0)","v":0},{"$f":"IFERROR(INDEX(tblClassList[],MATCH(SUMPRODUCT((tblClassList[DAY]=tblSchedule[[#Headers],[MONDAY]])*($B26>=tblClassList[START TIME])*($B26<=tblClassList[END TIME]),tblClassList[UNIQUE]),tblClassList[UNIQUE],0),2),0)","v":"WR-121"},{"$f":"IFERROR(INDEX(tblClassList[],MATCH(SUMPRODUCT((tblClassList[DAY]=tblSchedule[[#Headers],[TUESDAY]])*($B26>=tblClassList[START TIME])*($B26<=tblClassList[END TIME]),tblClassList[UNIQUE]),tblClassList[UNIQUE],0),2),0)","v":0},{"$f":"IFERROR(INDEX(tblClassList[],MATCH(SUMPRODUCT((tblClassList[DAY]=tblSchedule[[#Headers],[WEDNESDAY]])*($B26>=tblClassList[START TIME])*($B26<=tblClassList[END TIME]),tblClassList[UNIQUE]),tblClassList[UNIQUE],0),2),0)","v":"WR-121"},{"$f":"IFERROR(INDEX(tblClassList[],MATCH(SUMPRODUCT((tblClassList[DAY]=tblSchedule[[#Headers],[THURSDAY]])*($B26>=tblClassList[START TIME])*($B26<=tblClassList[END TIME]),tblClassList[UNIQUE]),tblClassList[UNIQUE],0),2),0)","v":0},{"$f":"IFERROR(INDEX(tblClassList[],MATCH(SUMPRODUCT((tblClassList[DAY]=tblSchedule[[#Headers],[FRIDAY]])*($B26>=tblClassList[START TIME])*($B26<=tblClassList[END TIME]),tblClassList[UNIQUE]),tblClassList[UNIQUE],0),2),0)","v":0},{"$f":"IFERROR(INDEX(tblClassList[],MATCH(SUMPRODUCT((tblClassList[DAY]=tblSchedule[[#Headers],[SATURDAY]])*($B26>=tblClassList[START TIME])*($B26<=tblClassList[END TIME]),tblClassList[UNIQUE]),tblClassList[UNIQUE],0),2),0)","v":0}]
[null,"13:45:00",{"$f":"IFERROR(INDEX(tblClassList[],MATCH(SUMPRODUCT((tblClassList[DAY]=tblSchedule[[#Headers],[SUNDAY]])*($B27>=tblClassList[START TIME])*($B27<=tblClassList[END TIME]),tblClassList[UNIQUE]),tblClassList[UNIQUE],0),2),0)","v":0},{"$f":"IFERROR(INDEX(tblClassList[],MATCH(SUMPRODUCT((tblClassList[DAY]=tblSchedule[[#Headers],[MONDAY]])*($B27>=tblClassList[START TIME])*($B27<=tblClassList[END TIME]),tblClassList[UNIQUE]),tblClassList[UNIQUE],0),2),0)","v":"WR-121"},{"$f":"IFERROR(INDEX(tblClassList[],MATCH(SUMPRODUCT((tblClassList[DAY]=tblSchedule[[#Headers],[TUESDAY]])*($B27>=tblClassList[START TIME])*($B27<=tblClassList[END TIME]),tblClassList[UNIQUE]),tblClassList[UNIQUE],0),2),0)","v":0},{"$f":"IFERROR(INDEX(tblClassList[],MATCH(SUMPRODUCT((tblClassList[DAY]=tblSchedule[[#Headers],[WEDNESDAY]])*($B27>=tblClassList[START TIME])*($B27<=tblClassList[END TIME]),tblClassList[UNIQUE]),tblClassList[UNIQUE],0),2),0)","v":"WR-121"},{"$f":"IFERROR(INDEX(tblClassList[],MATCH(SUMPRODUCT((tblClassList[DAY]=tblSchedule[[#Headers],[THURSDAY]])*($B27>=tblClassList[START TIME])*($B27<=tblClassList[END TIME]),tblClassList[UNIQUE]),tblClassList[UNIQUE],0),2),0)","v":0},{"$f":"IFERROR(INDEX(tblClassList[],MATCH(SUMPRODUCT((tblClassList[DAY]=tblSchedule[[#Headers],[FRIDAY]])*($B27>=tblClassList[START TIME])*($B27<=tblClassList[END TIME]),tblClassList[UNIQUE]),tblClassList[UNIQUE],0),2),0)","v":0},{"$f":"IFERROR(INDEX(tblClassList[],MATCH(SUMPRODUCT((tblClassList[DAY]=tblSchedule[[#Headers],[SATURDAY]])*($B27>=tblClassList[START TIME])*($B27<=tblClassList[END TIME]),tblClassList[UNIQUE]),tblClassList[UNIQUE],0),2),0)","v":0}]
[null,"14:00:00",{"$f":"IFERROR(INDEX(tblClassList[],MATCH(SUMPRODUCT((tblClassList[DAY]=tblSchedule[[#Headers],[SUNDAY]])*($B28>=tblClassList[START TIME])*($B28<=tblClassList[END TIME]),tblClassList[UNIQUE]),tblClassList[UNIQUE],0),2),0)","v":0},{"$f":"IFERROR(INDEX(tblClassList[],MATCH(SUMPRODUCT((tblClassList[DAY]=tblSchedule[[#Headers],[MONDAY]])*($B28>=tblClassList[START TIME])*($B28<=tblClassList[END TIME]),tblClassList[UNIQUE]),tblClassList[UNIQUE],0),2),0)","v":"WR-121"},{"$f":"IFERROR(INDEX(tblClassList[],MATCH(SUMPRODUCT((tblClassList[DAY]=tblSchedule[[#Headers],[TUESDAY]])*($B28>=tblClassList[START TIME])*($B28<=tblClassList[END TIME]),tblClassList[UNIQUE]),tblClassList[UNIQUE],0),2),0)","v":0},{"$f":"IFERROR(INDEX(tblClassList[],MATCH(SUMPRODUCT((tblClassList[DAY]=tblSchedule[[#Headers],[WEDNESDAY]])*($B28>=tblClassList[START TIME])*($B28<=tblClassList[END TIME]),tblClassList[UNIQUE]),tblClassList[UNIQUE],0),2),0)","v":"WR-121"},{"$f":"IFERROR(INDEX(tblClassList[],MATCH(SUMPRODUCT((tblClassList[DAY]=tblSchedule[[#Headers],[THURSDAY]])*($B28>=tblClassList[START TIME])*($B28<=tblClassList[END TIME]),tblClassList[UNIQUE]),tblClassList[UNIQUE],0),2),0)","v":0},{"$f":"IFERROR(INDEX(tblClassList[],MATCH(SUMPRODUCT((tblClassList[DAY]=tblSchedule[[#Headers],[FRIDAY]])*($B28>=tblClassList[START TIME])*($B28<=tblClassList[END TIME]),tblClassList[UNIQUE]),tblClassList[UNIQUE],0),2),0)","v":0},{"$f":"IFERROR(INDEX(tblClassList[],MATCH(SUMPRODUCT((tblClassList[DAY]=tblSchedule[[#Headers],[SATURDAY]])*($B28>=tblClassList[START TIME])*($B28<=tblClassList[END TIME]),tblClassList[UNIQUE]),tblClassList[UNIQUE],0),2),0)","v":0}]
[null,"14:15:00",{"$f":"IFERROR(INDEX(tblClassList[],MATCH(SUMPRODUCT((tblClassList[DAY]=tblSchedule[[#Headers],[SUNDAY]])*($B29>=tblClassList[START TIME])*($B29<=tblClassList[END TIME]),tblClassList[UNIQUE]),tblClassList[UNIQUE],0),2),0)","v":0},{"$f":"IFERROR(INDEX(tblClassList[],MATCH(SUMPRODUCT((tblClassList[DAY]=tblSchedule[[#Headers],[MONDAY]])*($B29>=tblClassList[START TIME])*($B29<=tblClassList[END TIME]),tblClassList[UNIQUE]),tblClassList[UNIQUE],0),2),0)","v":0},{"$f":"IFERROR(INDEX(tblClassList[],MATCH(SUMPRODUCT((tblClassList[DAY]=tblSchedule[[#Headers],[TUESDAY]])*($B29>=tblClassList[START TIME])*($B29<=tblClassList[END TIME]),tblClassList[UNIQUE]),tblClassList[UNIQUE],0),2),0)","v":0},{"$f":"IFERROR(INDEX(tblClassList[],MATCH(SUMPRODUCT((tblClassList[DAY]=tblSchedule[[#Headers],[WEDNESDAY]])*($B29>=tblClassList[START TIME])*($B29<=tblClassList[END TIME]),tblClassList[UNIQUE]),tblClassList[UNIQUE],0),2),0)","v":0},{"$f":"IFERROR(INDEX(tblClassList[],MATCH(SUMPRODUCT((tblClassList[DAY]=tblSchedule[[#Headers],[THURSDAY]])*($B29>=tblClassList[START TIME])*($B29<=tblClassList[END TIME]),tblClassList[UNIQUE]),tblClassList[UNIQUE],0),2),0)","v":0},{"$f":"IFERROR(INDEX(tblClassList[],MATCH(SUMPRODUCT((tblClassList[DAY]=tblSchedule[[#Headers],[FRIDAY]])*($B29>=tblClassList[START TIME])*($B29<=tblClassList[END TIME]),tblClassList[UNIQUE]),tblClassList[UNIQUE],0),2),0)","v":0},{"$f":"IFERROR(INDEX(tblClassList[],MATCH(SUMPRODUCT((tblClassList[DAY]=tblSchedule[[#Headers],[SATURDAY]])*($B29>=tblClassList[START TIME])*($B29<=tblClassList[END TIME]),tblClassList[UNIQUE]),tblClassList[UNIQUE],0),2),0)","v":0}]
[null,"14:30:00",{"$f":"IFERROR(INDEX(tblClassList[],MATCH(SUMPRODUCT((tblClassList[DAY]=tblSchedule[[#Headers],[SUNDAY]])*($B30>=tblClassList[START TIME])*($B30<=tblClassList[END TIME]),tblClassList[UNIQUE]),tblClassList[UNIQUE],0),2),0)","v":0},{"$f":"IFERROR(INDEX(tblClassList[],MATCH(SUMPRODUCT((tblClassList[DAY]=tblSchedule[[#Headers],[MONDAY]])*($B30>=tblClassList[START TIME])*($B30<=tblClassList[END TIME]),tblClassList[UNIQUE]),tblClassList[UNIQUE],0),2),0)","v":0},{"$f":"IFERROR(INDEX(tblClassList[],MATCH(SUMPRODUCT((tblClassList[DAY]=tblSchedule[[#Headers],[TUESDAY]])*($B30>=tblClassList[START TIME])*($B30<=tblClassList[END TIME]),tblClassList[UNIQUE]),tblClassList[UNIQUE],0),2),0)","v":0},{"$f":"IFERROR(INDEX(tblClassList[],MATCH(SUMPRODUCT((tblClassList[DAY]=tblSchedule[[#Headers],[WEDNESDAY]])*($B30>=tblClassList[START TIME])*($B30<=tblClassList[END TIME]),tblClassList[UNIQUE]),tblClassList[UNIQUE],0),2),0)","v":0},{"$f":"IFERROR(INDEX(tblClassList[],MATCH(SUMPRODUCT((tblClassList[DAY]=tblSchedule[[#Headers],[THURSDAY]])*($B30>=tblClassList[START TIME])*($B30<=tblClassList[END TIME]),tblClassList[UNIQUE]),tblClassList[UNIQUE],0),2),0)","v":0},{"$f":"IFERROR(INDEX(tblClassList[],MATCH(SUMPRODUCT((tblClassList[DAY]=tblSchedule[[#Headers],[FRIDAY]])*($B30>=tblClassList[START TIME])*($B30<=tblClassList[END TIME]),tblClassList[UNIQUE]),tblClassList[UNIQUE],0),2),0)","v":0},{"$f":"IFERROR(INDEX(tblClassList[],MATCH(SUMPRODUCT((tblClassList[DAY]=tblSchedule[[#Headers],[SATURDAY]])*($B30>=tblClassList[START TIME])*($B30<=tblClassList[END TIME]),tblClassList[UNIQUE]),tblClassList[UNIQUE],0),2),0)","v":0}]
[null,"14:45:00",{"$f":"IFERROR(INDEX(tblClassList[],MATCH(SUMPRODUCT((tblClassList[DAY]=tblSchedule[[#Headers],[SUNDAY]])*($B31>=tblClassList[START TIME])*($B31<=tblClassList[END TIME]),tblClassList[UNIQUE]),tblClassList[UNIQUE],0),2),0)","v":0},{"$f":"IFERROR(INDEX(tblClassList[],MATCH(SUMPRODUCT((tblClassList[DAY]=tblSchedule[[#Headers],[MONDAY]])*($B31>=tblClassList[START TIME])*($B31<=tblClassList[END TIME]),tblClassList[UNIQUE]),tblClassList[UNIQUE],0),2),0)","v":0},{"$f":"IFERROR(INDEX(tblClassList[],MATCH(SUMPRODUCT((tblClassList[DAY]=tblSchedule[[#Headers],[TUESDAY]])*($B31>=tblClassList[START TIME])*($B31<=tblClassList[END TIME]),tblClassList[UNIQUE]),tblClassList[UNIQUE],0),2),0)","v":0},{"$f":"IFERROR(INDEX(tblClassList[],MATCH(SUMPRODUCT((tblClassList[DAY]=tblSchedule[[#Headers],[WEDNESDAY]])*($B31>=tblClassList[START TIME])*($B31<=tblClassList[END TIME]),tblClassList[UNIQUE]),tblClassList[UNIQUE],0),2),0)","v":0},{"$f":"IFERROR(INDEX(tblClassList[],MATCH(SUMPRODUCT((tblClassList[DAY]=tblSchedule[[#Headers],[THURSDAY]])*($B31>=tblClassList[START TIME])*($B31<=tblClassList[END TIME]),tblClassList[UNIQUE]),tblClassList[UNIQUE],0),2),0)","v":0},{"$f":"IFERROR(INDEX(tblClassList[],MATCH(SUMPRODUCT((tblClassList[DAY]=tblSchedule[[#Headers],[FRIDAY]])*($B31>=tblClassList[START TIME])*($B31<=tblClassList[END TIME]),tblClassList[UNIQUE]),tblClassList[UNIQUE],0),2),0)","v":0},{"$f":"IFERROR(INDEX(tblClassList[],MATCH(SUMPRODUCT((tblClassList[DAY]=tblSchedule[[#Headers],[SATURDAY]])*($B31>=tblClassList[START TIME])*($B31<=tblClassList[END TIME]),tblClassList[UNIQUE]),tblClassList[UNIQUE],0),2),0)","v":0}]
[null,"15:00:00",{"$f":"IFERROR(INDEX(tblClassList[],MATCH(SUMPRODUCT((tblClassList[DAY]=tblSchedule[[#Headers],[SUNDAY]])*($B32>=tblClassList[START TIME])*($B32<=tblClassList[END TIME]),tblClassList[UNIQUE]),tblClassList[UNIQUE],0),2),0)","v":0},{"$f":"IFERROR(INDEX(tblClassList[],MATCH(SUMPRODUCT((tblClassList[DAY]=tblSchedule[[#Headers],[MONDAY]])*($B32>=tblClassList[START TIME])*($B32<=tblClassList[END TIME]),tblClassList[UNIQUE]),tblClassList[UNIQUE],0),2),0)","v":0},{"$f":"IFERROR(INDEX(tblClassList[],MATCH(SUMPRODUCT((tblClassList[DAY]=tblSchedule[[#Headers],[TUESDAY]])*($B32>=tblClassList[START TIME])*($B32<=tblClassList[END TIME]),tblClassList[UNIQUE]),tblClassList[UNIQUE],0),2),0)","v":0},{"$f":"IFERROR(INDEX(tblClassList[],MATCH(SUMPRODUCT((tblClassList[DAY]=tblSchedule[[#Headers],[WEDNESDAY]])*($B32>=tblClassList[START TIME])*($B32<=tblClassList[END TIME]),tblClassList[UNIQUE]),tblClassList[UNIQUE],0),2),0)","v":0},{"$f":"IFERROR(INDEX(tblClassList[],MATCH(SUMPRODUCT((tblClassList[DAY]=tblSchedule[[#Headers],[THURSDAY]])*($B32>=tblClassList[START TIME])*($B32<=tblClassList[END TIME]),tblClassList[UNIQUE]),tblClassList[UNIQUE],0),2),0)","v":0},{"$f":"IFERROR(INDEX(tblClassList[],MATCH(SUMPRODUCT((tblClassList[DAY]=tblSchedule[[#Headers],[FRIDAY]])*($B32>=tblClassList[START TIME])*($B32<=tblClassList[END TIME]),tblClassList[UNIQUE]),tblClassList[UNIQUE],0),2),0)","v":0},{"$f":"IFERROR(INDEX(tblClassList[],MATCH(SUMPRODUCT((tblClassList[DAY]=tblSchedule[[#Headers],[SATURDAY]])*($B32>=tblClassList[START TIME])*($B32<=tblClassList[END TIME]),tblClassList[UNIQUE]),tblClassList[UNIQUE],0),2),0)","v":0}]
[null,"15:15:00",{"$f":"IFERROR(INDEX(tblClassList[],MATCH(SUMPRODUCT((tblClassList[DAY]=tblSchedule[[#Headers],[SUNDAY]])*($B33>=tblClassList[START TIME])*($B33<=tblClassList[END TIME]),tblClassList[UNIQUE]),tblClassList[UNIQUE],0),2),0)","v":0},{"$f":"IFERROR(INDEX(tblClassList[],MATCH(SUMPRODUCT((tblClassList[DAY]=tblSchedule[[#Headers],[MONDAY]])*($B33>=tblClassList[START TIME])*($B33<=tblClassList[END TIME]),tblClassList[UNIQUE]),tblClassList[UNIQUE],0),2),0)","v":0},{"$f":"IFERROR(INDEX(tblClassList[],MATCH(SUMPRODUCT((tblClassList[DAY]=tblSchedule[[#Headers],[TUESDAY]])*($B33>=tblClassList[START TIME])*($B33<=tblClassList[END TIME]),tblClassList[UNIQUE]),tblClassList[UNIQUE],0),2),0)","v":0},{"$f":"IFERROR(INDEX(tblClassList[],MATCH(SUMPRODUCT((tblClassList[DAY]=tblSchedule[[#Headers],[WEDNESDAY]])*($B33>=tblClassList[START TIME])*($B33<=tblClassList[END TIME]),tblClassList[UNIQUE]),tblClassList[UNIQUE],0),2),0)","v":0},{"$f":"IFERROR(INDEX(tblClassList[],MATCH(SUMPRODUCT((tblClassList[DAY]=tblSchedule[[#Headers],[THURSDAY]])*($B33>=tblClassList[START TIME])*($B33<=tblClassList[END TIME]),tblClassList[UNIQUE]),tblClassList[UNIQUE],0),2),0)","v":0},{"$f":"IFERROR(INDEX(tblClassList[],MATCH(SUMPRODUCT((tblClassList[DAY]=tblSchedule[[#Headers],[FRIDAY]])*($B33>=tblClassList[START TIME])*($B33<=tblClassList[END TIME]),tblClassList[UNIQUE]),tblClassList[UNIQUE],0),2),0)","v":0},{"$f":"IFERROR(INDEX(tblClassList[],MATCH(SUMPRODUCT((tblClassList[DAY]=tblSchedule[[#Headers],[SATURDAY]])*($B33>=tblClassList[START TIME])*($B33<=tblClassList[END TIME]),tblClassList[UNIQUE]),tblClassList[UNIQUE],0),2),0)","v":0}]
[null,"15:30:00",{"$f":"IFERROR(INDEX(tblClassList[],MATCH(SUMPRODUCT((tblClassList[DAY]=tblSchedule[[#Headers],[SUNDAY]])*($B34>=tblClassList[START TIME])*($B34<=tblClassList[END TIME]),tblClassList[UNIQUE]),tblClassList[UNIQUE],0),2),0)","v":0},{"$f":"IFERROR(INDEX(tblClassList[],MATCH(SUMPRODUCT((tblClassList[DAY]=tblSchedule[[#Headers],[MONDAY]])*($B34>=tblClassList[START TIME])*($B34<=tblClassList[END TIME]),tblClassList[UNIQUE]),tblClassList[UNIQUE],0),2),0)","v":0},{"$f":"IFERROR(INDEX(tblClassList[],MATCH(SUMPRODUCT((tblClassList[DAY]=tblSchedule[[#Headers],[TUESDAY]])*($B34>=tblClassList[START TIME])*($B34<=tblClassList[END TIME]),tblClassList[UNIQUE]),tblClassList[UNIQUE],0),2),0)","v":0},{"$f":"IFERROR(INDEX(tblClassList[],MATCH(SUMPRODUCT((tblClassList[DAY]=tblSchedule[[#Headers],[WEDNESDAY]])*($B34>=tblClassList[START TIME])*($B34<=tblClassList[END TIME]),tblClassList[UNIQUE]),tblClassList[UNIQUE],0),2),0)","v":0},{"$f":"IFERROR(INDEX(tblClassList[],MATCH(SUMPRODUCT((tblClassList[DAY]=tblSchedule[[#Headers],[THURSDAY]])*($B34>=tblClassList[START TIME])*($B34<=tblClassList[END TIME]),tblClassList[UNIQUE]),tblClassList[UNIQUE],0),2),0)","v":0},{"$f":"IFERROR(INDEX(tblClassList[],MATCH(SUMPRODUCT((tblClassList[DAY]=tblSchedule[[#Headers],[FRIDAY]])*($B34>=tblClassList[START TIME])*($B34<=tblClassList[END TIME]),tblClassList[UNIQUE]),tblClassList[UNIQUE],0),2),0)","v":0},{"$f":"IFERROR(INDEX(tblClassList[],MATCH(SUMPRODUCT((tblClassList[DAY]=tblSchedule[[#Headers],[SATURDAY]])*($B34>=tblClassList[START TIME])*($B34<=tblClassList[END TIME]),tblClassList[UNIQUE]),tblClassList[UNIQUE],0),2),0)","v":0}]
[null,"15:45:00",{"$f":"IFERROR(INDEX(tblClassList[],MATCH(SUMPRODUCT((tblClassList[DAY]=tblSchedule[[#Headers],[SUNDAY]])*($B35>=tblClassList[START TIME])*($B35<=tblClassList[END TIME]),tblClassList[UNIQUE]),tblClassList[UNIQUE],0),2),0)","v":0},{"$f":"IFERROR(INDEX(tblClassList[],MATCH(SUMPRODUCT((tblClassList[DAY]=tblSchedule[[#Headers],[MONDAY]])*($B35>=tblClassList[START TIME])*($B35<=tblClassList[END TIME]),tblClassList[UNIQUE]),tblClassList[UNIQUE],0),2),0)","v":0},{"$f":"IFERROR(INDEX(tblClassList[],MATCH(SUMPRODUCT((tblClassList[DAY]=tblSchedule[[#Headers],[TUESDAY]])*($B35>=tblClassList[START TIME])*($B35<=tblClassList[END TIME]),tblClassList[UNIQUE]),tblClassList[UNIQUE],0),2),0)","v":0},{"$f":"IFERROR(INDEX(tblClassList[],MATCH(SUMPRODUCT((tblClassList[DAY]=tblSchedule[[#Headers],[WEDNESDAY]])*($B35>=tblClassList[START TIME])*($B35<=tblClassList[END TIME]),tblClassList[UNIQUE]),tblClassList[UNIQUE],0),2),0)","v":0},{"$f":"IFERROR(INDEX(tblClassList[],MATCH(SUMPRODUCT((tblClassList[DAY]=tblSchedule[[#Headers],[THURSDAY]])*($B35>=tblClassList[START TIME])*($B35<=tblClassList[END TIME]),tblClassList[UNIQUE]),tblClassList[UNIQUE],0),2),0)","v":0},{"$f":"IFERROR(INDEX(tblClassList[],MATCH(SUMPRODUCT((tblClassList[DAY]=tblSchedule[[#Headers],[FRIDAY]])*($B35>=tblClassList[START TIME])*($B35<=tblClassList[END TIME]),tblClassList[UNIQUE]),tblClassList[UNIQUE],0),2),0)","v":0},{"$f":"IFERROR(INDEX(tblClassList[],MATCH(SUMPRODUCT((tblClassList[DAY]=tblSchedule[[#Headers],[SATURDAY]])*($B35>=tblClassList[START TIME])*($B35<=tblClassList[END TIME]),tblClassList[UNIQUE]),tblClassList[UNIQUE],0),2),0)","v":0}]
[null,"16:00:00",{"$f":"IFERROR(INDEX(tblClassList[],MATCH(SUMPRODUCT((tblClassList[DAY]=tblSchedule[[#Headers],[SUNDAY]])*($B36>=tblClassList[START TIME])*($B36<=tblClassList[END TIME]),tblClassList[UNIQUE]),tblClassList[UNIQUE],0),2),0)","v":0},{"$f":"IFERROR(INDEX(tblClassList[],MATCH(SUMPRODUCT((tblClassList[DAY]=tblSchedule[[#Headers],[MONDAY]])*($B36>=tblClassList[START TIME])*($B36<=tblClassList[END TIME]),tblClassList[UNIQUE]),tblClassList[UNIQUE],0),2),0)","v":0},{"$f":"IFERROR(INDEX(tblClassList[],MATCH(SUMPRODUCT((tblClassList[DAY]=tblSchedule[[#Headers],[TUESDAY]])*($B36>=tblClassList[START TIME])*($B36<=tblClassList[END TIME]),tblClassList[UNIQUE]),tblClassList[UNIQUE],0),2),0)","v":0},{"$f":"IFERROR(INDEX(tblClassList[],MATCH(SUMPRODUCT((tblClassList[DAY]=tblSchedule[[#Headers],[WEDNESDAY]])*($B36>=tblClassList[START TIME])*($B36<=tblClassList[END TIME]),tblClassList[UNIQUE]),tblClassList[UNIQUE],0),2),0)","v":0},{"$f":"IFERROR(INDEX(tblClassList[],MATCH(SUMPRODUCT((tblClassList[DAY]=tblSchedule[[#Headers],[THURSDAY]])*($B36>=tblClassList[START TIME])*($B36<=tblClassList[END TIME]),tblClassList[UNIQUE]),tblClassList[UNIQUE],0),2),0)","v":0},{"$f":"IFERROR(INDEX(tblClassList[],MATCH(SUMPRODUCT((tblClassList[DAY]=tblSchedule[[#Headers],[FRIDAY]])*($B36>=tblClassList[START TIME])*($B36<=tblClassList[END TIME]),tblClassList[UNIQUE]),tblClassList[UNIQUE],0),2),0)","v":0},{"$f":"IFERROR(INDEX(tblClassList[],MATCH(SUMPRODUCT((tblClassList[DAY]=tblSchedule[[#Headers],[SATURDAY]])*($B36>=tblClassList[START TIME])*($B36<=tblClassList[END TIME]),tblClassList[UNIQUE]),tblClassList[UNIQUE],0),2),0)","v":0}]
[null,"16:15:00",{"$f":"IFERROR(INDEX(tblClassList[],MATCH(SUMPRODUCT((tblClassList[DAY]=tblSchedule[[#Headers],[SUNDAY]])*($B37>=tblClassList[START TIME])*($B37<=tblClassList[END TIME]),tblClassList[UNIQUE]),tblClassList[UNIQUE],0),2),0)","v":0},{"$f":"IFERROR(INDEX(tblClassList[],MATCH(SUMPRODUCT((tblClassList[DAY]=tblSchedule[[#Headers],[MONDAY]])*($B37>=tblClassList[START TIME])*($B37<=tblClassList[END TIME]),tblClassList[UNIQUE]),tblClassList[UNIQUE],0),2),0)","v":"SP-111"},{"$f":"IFERROR(INDEX(tblClassList[],MATCH(SUMPRODUCT((tblClassList[DAY]=tblSchedule[[#Headers],[TUESDAY]])*($B37>=tblClassList[START TIME])*($B37<=tblClassList[END TIME]),tblClassList[UNIQUE]),tblClassList[UNIQUE],0),2),0)","v":0},{"$f":"IFERROR(INDEX(tblClassList[],MATCH(SUMPRODUCT((tblClassList[DAY]=tblSchedule[[#Headers],[WEDNESDAY]])*($B37>=tblClassList[START TIME])*($B37<=tblClassList[END TIME]),tblClassList[UNIQUE]),tblClassList[UNIQUE],0),2),0)","v":0},{"$f":"IFERROR(INDEX(tblClassList[],MATCH(SUMPRODUCT((tblClassList[DAY]=tblSchedule[[#Headers],[THURSDAY]])*($B37>=tblClassList[START TIME])*($B37<=tblClassList[END TIME]),tblClassList[UNIQUE]),tblClassList[UNIQUE],0),2),0)","v":0},{"$f":"IFERROR(INDEX(tblClassList[],MATCH(SUMPRODUCT((tblClassList[DAY]=tblSchedule[[#Headers],[FRIDAY]])*($B37>=tblClassList[START TIME])*($B37<=tblClassList[END TIME]),tblClassList[UNIQUE]),tblClassList[UNIQUE],0),2),0)","v":0},{"$f":"IFERROR(INDEX(tblClassList[],MATCH(SUMPRODUCT((tblClassList[DAY]=tblSchedule[[#Headers],[SATURDAY]])*($B37>=tblClassList[START TIME])*($B37<=tblClassList[END TIME]),tblClassList[UNIQUE]),tblClassList[UNIQUE],0),2),0)","v":0}]
[null,"16:30:00",{"$f":"IFERROR(INDEX(tblClassList[],MATCH(SUMPRODUCT((tblClassList[DAY]=tblSchedule[[#Headers],[SUNDAY]])*($B38>=tblClassList[START TIME])*($B38<=tblClassList[END TIME]),tblClassList[UNIQUE]),tblClassList[UNIQUE],0),2),0)","v":0},{"$f":"IFERROR(INDEX(tblClassList[],MATCH(SUMPRODUCT((tblClassList[DAY]=tblSchedule[[#Headers],[MONDAY]])*($B38>=tblClassList[START TIME])*($B38<=tblClassList[END TIME]),tblClassList[UNIQUE]),tblClassList[UNIQUE],0),2),0)","v":"SP-111"},{"$f":"IFERROR(INDEX(tblClassList[],MATCH(SUMPRODUCT((tblClassList[DAY]=tblSchedule[[#Headers],[TUESDAY]])*($B38>=tblClassList[START TIME])*($B38<=tblClassList[END TIME]),tblClassList[UNIQUE]),tblClassList[UNIQUE],0),2),0)","v":0},{"$f":"IFERROR(INDEX(tblClassList[],MATCH(SUMPRODUCT((tblClassList[DAY]=tblSchedule[[#Headers],[WEDNESDAY]])*($B38>=tblClassList[START TIME])*($B38<=tblClassList[END TIME]),tblClassList[UNIQUE]),tblClassList[UNIQUE],0),2),0)","v":0},{"$f":"IFERROR(INDEX(tblClassList[],MATCH(SUMPRODUCT((tblClassList[DAY]=tblSchedule[[#Headers],[THURSDAY]])*($B38>=tblClassList[START TIME])*($B38<=tblClassList[END TIME]),tblClassList[UNIQUE]),tblClassList[UNIQUE],0),2),0)","v":0},{"$f":"IFERROR(INDEX(tblClassList[],MATCH(SUMPRODUCT((tblClassList[DAY]=tblSchedule[[#Headers],[FRIDAY]])*($B38>=tblClassList[START TIME])*($B38<=tblClassList[END TIME]),tblClassList[UNIQUE]),tblClassList[UNIQUE],0),2),0)","v":0},{"$f":"IFERROR(INDEX(tblClassList[],MATCH(SUMPRODUCT((tblClassList[DAY]=tblSchedule[[#Headers],[SATURDAY]])*($B38>=tblClassList[START TIME])*($B38<=tblClassList[END TIME]),tblClassList[UNIQUE]),tblClassList[UNIQUE],0),2),0)","v":0}]
[null,"16:45:00",{"$f":"IFERROR(INDEX(tblClassList[],MATCH(SUMPRODUCT((tblClassList[DAY]=tblSchedule[[#Headers],[SUNDAY]])*($B39>=tblClassList[START TIME])*($B39<=tblClassList[END TIME]),tblClassList[UNIQUE]),tblClassList[UNIQUE],0),2),0)","v":0},{"$f":"IFERROR(INDEX(tblClassList[],MATCH(SUMPRODUCT((tblClassList[DAY]=tblSchedule[[#Headers],[MONDAY]])*($B39>=tblClassList[START TIME])*($B39<=tblClassList[END TIME]),tblClassList[UNIQUE]),tblClassList[UNIQUE],0),2),0)","v":"SP-111"},{"$f":"IFERROR(INDEX(tblClassList[],MATCH(SUMPRODUCT((tblClassList[DAY]=tblSchedule[[#Headers],[TUESDAY]])*($B39>=tblClassList[START TIME])*($B39<=tblClassList[END TIME]),tblClassList[UNIQUE]),tblClassList[UNIQUE],0),2),0)","v":0},{"$f":"IFERROR(INDEX(tblClassList[],MATCH(SUMPRODUCT((tblClassList[DAY]=tblSchedule[[#Headers],[WEDNESDAY]])*($B39>=tblClassList[START TIME])*($B39<=tblClassList[END TIME]),tblClassList[UNIQUE]),tblClassList[UNIQUE],0),2),0)","v":0},{"$f":"IFERROR(INDEX(tblClassList[],MATCH(SUMPRODUCT((tblClassList[DAY]=tblSchedule[[#Headers],[THURSDAY]])*($B39>=tblClassList[START TIME])*($B39<=tblClassList[END TIME]),tblClassList[UNIQUE]),tblClassList[UNIQUE],0),2),0)","v":0},{"$f":"IFERROR(INDEX(tblClassList[],MATCH(SUMPRODUCT((tblClassList[DAY]=tblSchedule[[#Headers],[FRIDAY]])*($B39>=tblClassList[START TIME])*($B39<=tblClassList[END TIME]),tblClassList[UNIQUE]),tblClassList[UNIQUE],0),2),0)","v":0},{"$f":"IFERROR(INDEX(tblClassList[],MATCH(SUMPRODUCT((tblClassList[DAY]=tblSchedule[[#Headers],[SATURDAY]])*($B39>=tblClassList[START TIME])*($B39<=tblClassList[END TIME]),tblClassList[UNIQUE]),tblClassList[UNIQUE],0),2),0)","v":0}]
[null,"17:00:00",{"$f":"IFERROR(INDEX(tblClassList[],MATCH(SUMPRODUCT((tblClassList[DAY]=tblSchedule[[#Headers],[SUNDAY]])*($B40>=tblClassList[START TIME])*($B40<=tblClassList[END TIME]),tblClassList[UNIQUE]),tblClassList[UNIQUE],0),2),0)","v":0},{"$f":"IFERROR(INDEX(tblClassList[],MATCH(SUMPRODUCT((tblClassList[DAY]=tblSchedule[[#Headers],[MONDAY]])*($B40>=tblClassList[START TIME])*($B40<=tblClassList[END TIME]),tblClassList[UNIQUE]),tblClassList[UNIQUE],0),2),0)","v":"SP-111"},{"$f":"IFERROR(INDEX(tblClassList[],MATCH(SUMPRODUCT((tblClassList[DAY]=tblSchedule[[#Headers],[TUESDAY]])*($B40>=tblClassList[START TIME])*($B40<=tblClassList[END TIME]),tblClassList[UNIQUE]),tblClassList[UNIQUE],0),2),0)","v":0},{"$f":"IFERROR(INDEX(tblClassList[],MATCH(SUMPRODUCT((tblClassList[DAY]=tblSchedule[[#Headers],[WEDNESDAY]])*($B40>=tblClassList[START TIME])*($B40<=tblClassList[END TIME]),tblClassList[UNIQUE]),tblClassList[UNIQUE],0),2),0)","v":0},{"$f":"IFERROR(INDEX(tblClassList[],MATCH(SUMPRODUCT((tblClassList[DAY]=tblSchedule[[#Headers],[THURSDAY]])*($B40>=tblClassList[START TIME])*($B40<=tblClassList[END TIME]),tblClassList[UNIQUE]),tblClassList[UNIQUE],0),2),0)","v":0},{"$f":"IFERROR(INDEX(tblClassList[],MATCH(SUMPRODUCT((tblClassList[DAY]=tblSchedule[[#Headers],[FRIDAY]])*($B40>=tblClassList[START TIME])*($B40<=tblClassList[END TIME]),tblClassList[UNIQUE]),tblClassList[UNIQUE],0),2),0)","v":0},{"$f":"IFERROR(INDEX(tblClassList[],MATCH(SUMPRODUCT((tblClassList[DAY]=tblSchedule[[#Headers],[SATURDAY]])*($B40>=tblClassList[START TIME])*($B40<=tblClassList[END TIME]),tblClassList[UNIQUE]),tblClassList[UNIQUE],0),2),0)","v":0}]
[null,"17:15:00",{"$f":"IFERROR(INDEX(tblClassList[],MATCH(SUMPRODUCT((tblClassList[DAY]=tblSchedule[[#Headers],[SUNDAY]])*($B41>=tblClassList[START TIME])*($B41<=tblClassList[END TIME]),tblClassList[UNIQUE]),tblClassList[UNIQUE],0),2),0)","v":0},{"$f":"IFERROR(INDEX(tblClassList[],MATCH(SUMPRODUCT((tblClassList[DAY]=tblSchedule[[#Headers],[MONDAY]])*($B41>=tblClassList[START TIME])*($B41<=tblClassList[END TIME]),tblClassList[UNIQUE]),tblClassList[UNIQUE],0),2),0)","v":0},{"$f":"IFERROR(INDEX(tblClassList[],MATCH(SUMPRODUCT((tblClassList[DAY]=tblSchedule[[#Headers],[TUESDAY]])*($B41>=tblClassList[START TIME])*($B41<=tblClassList[END TIME]),tblClassList[UNIQUE]),tblClassList[UNIQUE],0),2),0)","v":0},{"$f":"IFERROR(INDEX(tblClassList[],MATCH(SUMPRODUCT((tblClassList[DAY]=tblSchedule[[#Headers],[WEDNESDAY]])*($B41>=tblClassList[START TIME])*($B41<=tblClassList[END TIME]),tblClassList[UNIQUE]),tblClassList[UNIQUE],0),2),0)","v":0},{"$f":"IFERROR(INDEX(tblClassList[],MATCH(SUMPRODUCT((tblClassList[DAY]=tblSchedule[[#Headers],[THURSDAY]])*($B41>=tblClassList[START TIME])*($B41<=tblClassList[END TIME]),tblClassList[UNIQUE]),tblClassList[UNIQUE],0),2),0)","v":0},{"$f":"IFERROR(INDEX(tblClassList[],MATCH(SUMPRODUCT((tblClassList[DAY]=tblSchedule[[#Headers],[FRIDAY]])*($B41>=tblClassList[START TIME])*($B41<=tblClassList[END TIME]),tblClassList[UNIQUE]),tblClassList[UNIQUE],0),2),0)","v":0},{"$f":"IFERROR(INDEX(tblClassList[],MATCH(SUMPRODUCT((tblClassList[DAY]=tblSchedule[[#Headers],[SATURDAY]])*($B41>=tblClassList[START TIME])*($B41<=tblClassList[END TIME]),tblClassList[UNIQUE]),tblClassList[UNIQUE],0),2),0)","v":0}]
[null,"17:30:00",{"$f":"IFERROR(INDEX(tblClassList[],MATCH(SUMPRODUCT((tblClassList[DAY]=tblSchedule[[#Headers],[SUNDAY]])*($B42>=tblClassList[START TIME])*($B42<=tblClassList[END TIME]),tblClassList[UNIQUE]),tblClassList[UNIQUE],0),2),0)","v":0},{"$f":"IFERROR(INDEX(tblClassList[],MATCH(SUMPRODUCT((tblClassList[DAY]=tblSchedule[[#Headers],[MONDAY]])*($B42>=tblClassList[START TIME])*($B42<=tblClassList[END TIME]),tblClassList[UNIQUE]),tblClassList[UNIQUE],0),2),0)","v":0},{"$f":"IFERROR(INDEX(tblClassList[],MATCH(SUMPRODUCT((tblClassList[DAY]=tblSchedule[[#Headers],[TUESDAY]])*($B42>=tblClassList[START TIME])*($B42<=tblClassList[END TIME]),tblClassList[UNIQUE]),tblClassList[UNIQUE],0),2),0)","v":0},{"$f":"IFERROR(INDEX(tblClassList[],MATCH(SUMPRODUCT((tblClassList[DAY]=tblSchedule[[#Headers],[WEDNESDAY]])*($B42>=tblClassList[START TIME])*($B42<=tblClassList[END TIME]),tblClassList[UNIQUE]),tblClassList[UNIQUE],0),2),0)","v":0},{"$f":"IFERROR(INDEX(tblClassList[],MATCH(SUMPRODUCT((tblClassList[DAY]=tblSchedule[[#Headers],[THURSDAY]])*($B42>=tblClassList[START TIME])*($B42<=tblClassList[END TIME]),tblClassList[UNIQUE]),tblClassList[UNIQUE],0),2),0)","v":0},{"$f":"IFERROR(INDEX(tblClassList[],MATCH(SUMPRODUCT((tblClassList[DAY]=tblSchedule[[#Headers],[FRIDAY]])*($B42>=tblClassList[START TIME])*($B42<=tblClassList[END TIME]),tblClassList[UNIQUE]),tblClassList[UNIQUE],0),2),0)","v":0},{"$f":"IFERROR(INDEX(tblClassList[],MATCH(SUMPRODUCT((tblClassList[DAY]=tblSchedule[[#Headers],[SATURDAY]])*($B42>=tblClassList[START TIME])*($B42<=tblClassList[END TIME]),tblClassList[UNIQUE]),tblClassList[UNIQUE],0),2),0)","v":0}]
[null,"17:45:00",{"$f":"IFERROR(INDEX(tblClassList[],MATCH(SUMPRODUCT((tblClassList[DAY]=tblSchedule[[#Headers],[SUNDAY]])*($B43>=tblClassList[START TIME])*($B43<=tblClassList[END TIME]),tblClassList[UNIQUE]),tblClassList[UNIQUE],0),2),0)","v":0},{"$f":"IFERROR(INDEX(tblClassList[],MATCH(SUMPRODUCT((tblClassList[DAY]=tblSchedule[[#Headers],[MONDAY]])*($B43>=tblClassList[START TIME])*($B43<=tblClassList[END TIME]),tblClassList[UNIQUE]),tblClassList[UNIQUE],0),2),0)","v":0},{"$f":"IFERROR(INDEX(tblClassList[],MATCH(SUMPRODUCT((tblClassList[DAY]=tblSchedule[[#Headers],[TUESDAY]])*($B43>=tblClassList[START TIME])*($B43<=tblClassList[END TIME]),tblClassList[UNIQUE]),tblClassList[UNIQUE],0),2),0)","v":0},{"$f":"IFERROR(INDEX(tblClassList[],MATCH(SUMPRODUCT((tblClassList[DAY]=tblSchedule[[#Headers],[WEDNESDAY]])*($B43>=tblClassList[START TIME])*($B43<=tblClassList[END TIME]),tblClassList[UNIQUE]),tblClassList[UNIQUE],0),2),0)","v":0},{"$f":"IFERROR(INDEX(tblClassList[],MATCH(SUMPRODUCT((tblClassList[DAY]=tblSchedule[[#Headers],[THURSDAY]])*($B43>=tblClassList[START TIME])*($B43<=tblClassList[END TIME]),tblClassList[UNIQUE]),tblClassList[UNIQUE],0),2),0)","v":0},{"$f":"IFERROR(INDEX(tblClassList[],MATCH(SUMPRODUCT((tblClassList[DAY]=tblSchedule[[#Headers],[FRIDAY]])*($B43>=tblClassList[START TIME])*($B43<=tblClassList[END TIME]),tblClassList[UNIQUE]),tblClassList[UNIQUE],0),2),0)","v":0},{"$f":"IFERROR(INDEX(tblClassList[],MATCH(SUMPRODUCT((tblClassList[DAY]=tblSchedule[[#Headers],[SATURDAY]])*($B43>=tblClassList[START TIME])*($B43<=tblClassList[END TIME]),tblClassList[UNIQUE]),tblClassList[UNIQUE],0),2),0)","v":0}]
[null,"18:00:00",{"$f":"IFERROR(INDEX(tblClassList[],MATCH(SUMPRODUCT((tblClassList[DAY]=tblSchedule[[#Headers],[SUNDAY]])*($B44>=tblClassList[START TIME])*($B44<=tblClassList[END TIME]),tblClassList[UNIQUE]),tblClassList[UNIQUE],0),2),0)","v":0},{"$f":"IFERROR(INDEX(tblClassList[],MATCH(SUMPRODUCT((tblClassList[DAY]=tblSchedule[[#Headers],[MONDAY]])*($B44>=tblClassList[START TIME])*($B44<=tblClassList[END TIME]),tblClassList[UNIQUE]),tblClassList[UNIQUE],0),2),0)","v":0},{"$f":"IFERROR(INDEX(tblClassList[],MATCH(SUMPRODUCT((tblClassList[DAY]=tblSchedule[[#Headers],[TUESDAY]])*($B44>=tblClassList[START TIME])*($B44<=tblClassList[END TIME]),tblClassList[UNIQUE]),tblClassList[UNIQUE],0),2),0)","v":0},{"$f":"IFERROR(INDEX(tblClassList[],MATCH(SUMPRODUCT((tblClassList[DAY]=tblSchedule[[#Headers],[WEDNESDAY]])*($B44>=tblClassList[START TIME])*($B44<=tblClassList[END TIME]),tblClassList[UNIQUE]),tblClassList[UNIQUE],0),2),0)","v":0},{"$f":"IFERROR(INDEX(tblClassList[],MATCH(SUMPRODUCT((tblClassList[DAY]=tblSchedule[[#Headers],[THURSDAY]])*($B44>=tblClassList[START TIME])*($B44<=tblClassList[END TIME]),tblClassList[UNIQUE]),tblClassList[UNIQUE],0),2),0)","v":0},{"$f":"IFERROR(INDEX(tblClassList[],MATCH(SUMPRODUCT((tblClassList[DAY]=tblSchedule[[#Headers],[FRIDAY]])*($B44>=tblClassList[START TIME])*($B44<=tblClassList[END TIME]),tblClassList[UNIQUE]),tblClassList[UNIQUE],0),2),0)","v":0},{"$f":"IFERROR(INDEX(tblClassList[],MATCH(SUMPRODUCT((tblClassList[DAY]=tblSchedule[[#Headers],[SATURDAY]])*($B44>=tblClassList[START TIME])*($B44<=tblClassList[END TIME]),tblClassList[UNIQUE]),tblClassList[UNIQUE],0),2),0)","v":0}]
[null,"18:15:00",{"$f":"IFERROR(INDEX(tblClassList[],MATCH(SUMPRODUCT((tblClassList[DAY]=tblSchedule[[#Headers],[SUNDAY]])*($B45>=tblClassList[START TIME])*($B45<=tblClassList[END TIME]),tblClassList[UNIQUE]),tblClassList[UNIQUE],0),2),0)","v":0},{"$f":"IFERROR(INDEX(tblClassList[],MATCH(SUMPRODUCT((tblClassList[DAY]=tblSchedule[[#Headers],[MONDAY]])*($B45>=tblClassList[START TIME])*($B45<=tblClassList[END TIME]),tblClassList[UNIQUE]),tblClassList[UNIQUE],0),2),0)","v":0},{"$f":"IFERROR(INDEX(tblClassList[],MATCH(SUMPRODUCT((tblClassList[DAY]=tblSchedule[[#Headers],[TUESDAY]])*($B45>=tblClassList[START TIME])*($B45<=tblClassList[END TIME]),tblClassList[UNIQUE]),tblClassList[UNIQUE],0),2),0)","v":0},{"$f":"IFERROR(INDEX(tblClassList[],MATCH(SUMPRODUCT((tblClassList[DAY]=tblSchedule[[#Headers],[WEDNESDAY]])*($B45>=tblClassList[START TIME])*($B45<=tblClassList[END TIME]),tblClassList[UNIQUE]),tblClassList[UNIQUE],0),2),0)","v":0},{"$f":"IFERROR(INDEX(tblClassList[],MATCH(SUMPRODUCT((tblClassList[DAY]=tblSchedule[[#Headers],[THURSDAY]])*($B45>=tblClassList[START TIME])*($B45<=tblClassList[END TIME]),tblClassList[UNIQUE]),tblClassList[UNIQUE],0),2),0)","v":0},{"$f":"IFERROR(INDEX(tblClassList[],MATCH(SUMPRODUCT((tblClassList[DAY]=tblSchedule[[#Headers],[FRIDAY]])*($B45>=tblClassList[START TIME])*($B45<=tblClassList[END TIME]),tblClassList[UNIQUE]),tblClassList[UNIQUE],0),2),0)","v":0},{"$f":"IFERROR(INDEX(tblClassList[],MATCH(SUMPRODUCT((tblClassList[DAY]=tblSchedule[[#Headers],[SATURDAY]])*($B45>=tblClassList[START TIME])*($B45<=tblClassList[END TIME]),tblClassList[UNIQUE]),tblClassList[UNIQUE],0),2),0)","v":0}]
[null,"18:30:00",{"$f":"IFERROR(INDEX(tblClassList[],MATCH(SUMPRODUCT((tblClassList[DAY]=tblSchedule[[#Headers],[SUNDAY]])*($B46>=tblClassList[START TIME])*($B46<=tblClassList[END TIME]),tblClassList[UNIQUE]),tblClassList[UNIQUE],0),2),0)","v":0},{"$f":"IFERROR(INDEX(tblClassList[],MATCH(SUMPRODUCT((tblClassList[DAY]=tblSchedule[[#Headers],[MONDAY]])*($B46>=tblClassList[START TIME])*($B46<=tblClassList[END TIME]),tblClassList[UNIQUE]),tblClassList[UNIQUE],0),2),0)","v":0},{"$f":"IFERROR(INDEX(tblClassList[],MATCH(SUMPRODUCT((tblClassList[DAY]=tblSchedule[[#Headers],[TUESDAY]])*($B46>=tblClassList[START TIME])*($B46<=tblClassList[END TIME]),tblClassList[UNIQUE]),tblClassList[UNIQUE],0),2),0)","v":0},{"$f":"IFERROR(INDEX(tblClassList[],MATCH(SUMPRODUCT((tblClassList[DAY]=tblSchedule[[#Headers],[WEDNESDAY]])*($B46>=tblClassList[START TIME])*($B46<=tblClassList[END TIME]),tblClassList[UNIQUE]),tblClassList[UNIQUE],0),2),0)","v":0},{"$f":"IFERROR(INDEX(tblClassList[],MATCH(SUMPRODUCT((tblClassList[DAY]=tblSchedule[[#Headers],[THURSDAY]])*($B46>=tblClassList[START TIME])*($B46<=tblClassList[END TIME]),tblClassList[UNIQUE]),tblClassList[UNIQUE],0),2),0)","v":0},{"$f":"IFERROR(INDEX(tblClassList[],MATCH(SUMPRODUCT((tblClassList[DAY]=tblSchedule[[#Headers],[FRIDAY]])*($B46>=tblClassList[START TIME])*($B46<=tblClassList[END TIME]),tblClassList[UNIQUE]),tblClassList[UNIQUE],0),2),0)","v":0},{"$f":"IFERROR(INDEX(tblClassList[],MATCH(SUMPRODUCT((tblClassList[DAY]=tblSchedule[[#Headers],[SATURDAY]])*($B46>=tblClassList[START TIME])*($B46<=tblClassList[END TIME]),tblClassList[UNIQUE]),tblClassList[UNIQUE],0),2),0)","v":0}]
[null,"18:45:00",{"$f":"IFERROR(INDEX(tblClassList[],MATCH(SUMPRODUCT((tblClassList[DAY]=tblSchedule[[#Headers],[SUNDAY]])*($B47>=tblClassList[START TIME])*($B47<=tblClassList[END TIME]),tblClassList[UNIQUE]),tblClassList[UNIQUE],0),2),0)","v":0},{"$f":"IFERROR(INDEX(tblClassList[],MATCH(SUMPRODUCT((tblClassList[DAY]=tblSchedule[[#Headers],[MONDAY]])*($B47>=tblClassList[START TIME])*($B47<=tblClassList[END TIME]),tblClassList[UNIQUE]),tblClassList[UNIQUE],0),2),0)","v":0},{"$f":"IFERROR(INDEX(tblClassList[],MATCH(SUMPRODUCT((tblClassList[DAY]=tblSchedule[[#Headers],[TUESDAY]])*($B47>=tblClassList[START TIME])*($B47<=tblClassList[END TIME]),tblClassList[UNIQUE]),tblClassList[UNIQUE],0),2),0)","v":0},{"$f":"IFERROR(INDEX(tblClassList[],MATCH(SUMPRODUCT((tblClassList[DAY]=tblSchedule[[#Headers],[WEDNESDAY]])*($B47>=tblClassList[START TIME])*($B47<=tblClassList[END TIME]),tblClassList[UNIQUE]),tblClassList[UNIQUE],0),2),0)","v":0},{"$f":"IFERROR(INDEX(tblClassList[],MATCH(SUMPRODUCT((tblClassList[DAY]=tblSchedule[[#Headers],[THURSDAY]])*($B47>=tblClassList[START TIME])*($B47<=tblClassList[END TIME]),tblClassList[UNIQUE]),tblClassList[UNIQUE],0),2),0)","v":0},{"$f":"IFERROR(INDEX(tblClassList[],MATCH(SUMPRODUCT((tblClassList[DAY]=tblSchedule[[#Headers],[FRIDAY]])*($B47>=tblClassList[START TIME])*($B47<=tblClassList[END TIME]),tblClassList[UNIQUE]),tblClassList[UNIQUE],0),2),0)","v":0},{"$f":"IFERROR(INDEX(tblClassList[],MATCH(SUMPRODUCT((tblClassList[DAY]=tblSchedule[[#Headers],[SATURDAY]])*($B47>=tblClassList[START TIME])*($B47<=tblClassList[END TIME]),tblClassList[UNIQUE]),tblClassList[UNIQUE],0),2),0)","v":0}]
[null,"19:00:00",{"$f":"IFERROR(INDEX(tblClassList[],MATCH(SUMPRODUCT((tblClassList[DAY]=tblSchedule[[#Headers],[SUNDAY]])*($B48>=tblClassList[START TIME])*($B48<=tblClassList[END TIME]),tblClassList[UNIQUE]),tblClassList[UNIQUE],0),2),0)","v":0},{"$f":"IFERROR(INDEX(tblClassList[],MATCH(SUMPRODUCT((tblClassList[DAY]=tblSchedule[[#Headers],[MONDAY]])*($B48>=tblClassList[START TIME])*($B48<=tblClassList[END TIME]),tblClassList[UNIQUE]),tblClassList[UNIQUE],0),2),0)","v":0},{"$f":"IFERROR(INDEX(tblClassList[],MATCH(SUMPRODUCT((tblClassList[DAY]=tblSchedule[[#Headers],[TUESDAY]])*($B48>=tblClassList[START TIME])*($B48<=tblClassList[END TIME]),tblClassList[UNIQUE]),tblClassList[UNIQUE],0),2),0)","v":0},{"$f":"IFERROR(INDEX(tblClassList[],MATCH(SUMPRODUCT((tblClassList[DAY]=tblSchedule[[#Headers],[WEDNESDAY]])*($B48>=tblClassList[START TIME])*($B48<=tblClassList[END TIME]),tblClassList[UNIQUE]),tblClassList[UNIQUE],0),2),0)","v":0},{"$f":"IFERROR(INDEX(tblClassList[],MATCH(SUMPRODUCT((tblClassList[DAY]=tblSchedule[[#Headers],[THURSDAY]])*($B48>=tblClassList[START TIME])*($B48<=tblClassList[END TIME]),tblClassList[UNIQUE]),tblClassList[UNIQUE],0),2),0)","v":0},{"$f":"IFERROR(INDEX(tblClassList[],MATCH(SUMPRODUCT((tblClassList[DAY]=tblSchedule[[#Headers],[FRIDAY]])*($B48>=tblClassList[START TIME])*($B48<=tblClassList[END TIME]),tblClassList[UNIQUE]),tblClassList[UNIQUE],0),2),0)","v":0},{"$f":"IFERROR(INDEX(tblClassList[],MATCH(SUMPRODUCT((tblClassList[DAY]=tblSchedule[[#Headers],[SATURDAY]])*($B48>=tblClassList[START TIME])*($B48<=tblClassList[END TIME]),tblClassList[UNIQUE]),tblClassList[UNIQUE],0),2),0)","v":0}]
[null,"19:15:00",{"$f":"IFERROR(INDEX(tblClassList[],MATCH(SUMPRODUCT((tblClassList[DAY]=tblSchedule[[#Headers],[SUNDAY]])*($B49>=tblClassList[START TIME])*($B49<=tblClassList[END TIME]),tblClassList[UNIQUE]),tblClassList[UNIQUE],0),2),0)","v":0},{"$f":"IFERROR(INDEX(tblClassList[],MATCH(SUMPRODUCT((tblClassList[DAY]=tblSchedule[[#Headers],[MONDAY]])*($B49>=tblClassList[START TIME])*($B49<=tblClassList[END TIME]),tblClassList[UNIQUE]),tblClassList[UNIQUE],0),2),0)","v":0},{"$f":"IFERROR(INDEX(tblClassList[],MATCH(SUMPRODUCT((tblClassList[DAY]=tblSchedule[[#Headers],[TUESDAY]])*($B49>=tblClassList[START TIME])*($B49<=tblClassList[END TIME]),tblClassList[UNIQUE]),tblClassList[UNIQUE],0),2),0)","v":0},{"$f":"IFERROR(INDEX(tblClassList[],MATCH(SUMPRODUCT((tblClassList[DAY]=tblSchedule[[#Headers],[WEDNESDAY]])*($B49>=tblClassList[START TIME])*($B49<=tblClassList[END TIME]),tblClassList[UNIQUE]),tblClassList[UNIQUE],0),2),0)","v":0},{"$f":"IFERROR(INDEX(tblClassList[],MATCH(SUMPRODUCT((tblClassList[DAY]=tblSchedule[[#Headers],[THURSDAY]])*($B49>=tblClassList[START TIME])*($B49<=tblClassList[END TIME]),tblClassList[UNIQUE]),tblClassList[UNIQUE],0),2),0)","v":0},{"$f":"IFERROR(INDEX(tblClassList[],MATCH(SUMPRODUCT((tblClassList[DAY]=tblSchedule[[#Headers],[FRIDAY]])*($B49>=tblClassList[START TIME])*($B49<=tblClassList[END TIME]),tblClassList[UNIQUE]),tblClassList[UNIQUE],0),2),0)","v":0},{"$f":"IFERROR(INDEX(tblClassList[],MATCH(SUMPRODUCT((tblClassList[DAY]=tblSchedule[[#Headers],[SATURDAY]])*($B49>=tblClassList[START TIME])*($B49<=tblClassList[END TIME]),tblClassList[UNIQUE]),tblClassList[UNIQUE],0),2),0)","v":0}]
[null,"19:30:00",{"$f":"IFERROR(INDEX(tblClassList[],MATCH(SUMPRODUCT((tblClassList[DAY]=tblSchedule[[#Headers],[SUNDAY]])*($B50>=tblClassList[START TIME])*($B50<=tblClassList[END TIME]),tblClassList[UNIQUE]),tblClassList[UNIQUE],0),2),0)","v":0},{"$f":"IFERROR(INDEX(tblClassList[],MATCH(SUMPRODUCT((tblClassList[DAY]=tblSchedule[[#Headers],[MONDAY]])*($B50>=tblClassList[START TIME])*($B50<=tblClassList[END TIME]),tblClassList[UNIQUE]),tblClassList[UNIQUE],0),2),0)","v":0},{"$f":"IFERROR(INDEX(tblClassList[],MATCH(SUMPRODUCT((tblClassList[DAY]=tblSchedule[[#Headers],[TUESDAY]])*($B50>=tblClassList[START TIME])*($B50<=tblClassList[END TIME]),tblClassList[UNIQUE]),tblClassList[UNIQUE],0),2),0)","v":0},{"$f":"IFERROR(INDEX(tblClassList[],MATCH(SUMPRODUCT((tblClassList[DAY]=tblSchedule[[#Headers],[WEDNESDAY]])*($B50>=tblClassList[START TIME])*($B50<=tblClassList[END TIME]),tblClassList[UNIQUE]),tblClassList[UNIQUE],0),2),0)","v":0},{"$f":"IFERROR(INDEX(tblClassList[],MATCH(SUMPRODUCT((tblClassList[DAY]=tblSchedule[[#Headers],[THURSDAY]])*($B50>=tblClassList[START TIME])*($B50<=tblClassList[END TIME]),tblClassList[UNIQUE]),tblClassList[UNIQUE],0),2),0)","v":0},{"$f":"IFERROR(INDEX(tblClassList[],MATCH(SUMPRODUCT((tblClassList[DAY]=tblSchedule[[#Headers],[FRIDAY]])*($B50>=tblClassList[START TIME])*($B50<=tblClassList[END TIME]),tblClassList[UNIQUE]),tblClassList[UNIQUE],0),2),0)","v":0},{"$f":"IFERROR(INDEX(tblClassList[],MATCH(SUMPRODUCT((tblClassList[DAY]=tblSchedule[[#Headers],[SATURDAY]])*($B50>=tblClassList[START TIME])*($B50<=tblClassList[END TIME]),tblClassList[UNIQUE]),tblClassList[UNIQUE],0),2),0)","v":0}]
[null,"19:45:00",{"$f":"IFERROR(INDEX(tblClassList[],MATCH(SUMPRODUCT((tblClassList[DAY]=tblSchedule[[#Headers],[SUNDAY]])*($B51>=tblClassList[START TIME])*($B51<=tblClassList[END TIME]),tblClassList[UNIQUE]),tblClassList[UNIQUE],0),2),0)","v":0},{"$f":"IFERROR(INDEX(tblClassList[],MATCH(SUMPRODUCT((tblClassList[DAY]=tblSchedule[[#Headers],[MONDAY]])*($B51>=tblClassList[START TIME])*($B51<=tblClassList[END TIME]),tblClassList[UNIQUE]),tblClassList[UNIQUE],0),2),0)","v":0},{"$f":"IFERROR(INDEX(tblClassList[],MATCH(SUMPRODUCT((tblClassList[DAY]=tblSchedule[[#Headers],[TUESDAY]])*($B51>=tblClassList[START TIME])*($B51<=tblClassList[END TIME]),tblClassList[UNIQUE]),tblClassList[UNIQUE],0),2),0)","v":0},{"$f":"IFERROR(INDEX(tblClassList[],MATCH(SUMPRODUCT((tblClassList[DAY]=tblSchedule[[#Headers],[WEDNESDAY]])*($B51>=tblClassList[START TIME])*($B51<=tblClassList[END TIME]),tblClassList[UNIQUE]),tblClassList[UNIQUE],0),2),0)","v":0},{"$f":"IFERROR(INDEX(tblClassList[],MATCH(SUMPRODUCT((tblClassList[DAY]=tblSchedule[[#Headers],[THURSDAY]])*($B51>=tblClassList[START TIME])*($B51<=tblClassList[END TIME]),tblClassList[UNIQUE]),tblClassList[UNIQUE],0),2),0)","v":0},{"$f":"IFERROR(INDEX(tblClassList[],MATCH(SUMPRODUCT((tblClassList[DAY]=tblSchedule[[#Headers],[FRIDAY]])*($B51>=tblClassList[START TIME])*($B51<=tblClassList[END TIME]),tblClassList[UNIQUE]),tblClassList[UNIQUE],0),2),0)","v":0},{"$f":"IFERROR(INDEX(tblClassList[],MATCH(SUMPRODUCT((tblClassList[DAY]=tblSchedule[[#Headers],[SATURDAY]])*($B51>=tblClassList[START TIME])*($B51<=tblClassList[END TIME]),tblClassList[UNIQUE]),tblClassList[UNIQUE],0),2),0)","v":0}]
[null,"20:00:00",{"$f":"IFERROR(INDEX(tblClassList[],MATCH(SUMPRODUCT((tblClassList[DAY]=tblSchedule[[#Headers],[SUNDAY]])*($B52>=tblClassList[START TIME])*($B52<=tblClassList[END TIME]),tblClassList[UNIQUE]),tblClassList[UNIQUE],0),2),0)","v":0},{"$f":"IFERROR(INDEX(tblClassList[],MATCH(SUMPRODUCT((tblClassList[DAY]=tblSchedule[[#Headers],[MONDAY]])*($B52>=tblClassList[START TIME])*($B52<=tblClassList[END TIME]),tblClassList[UNIQUE]),tblClassList[UNIQUE],0),2),0)","v":0},{"$f":"IFERROR(INDEX(tblClassList[],MATCH(SUMPRODUCT((tblClassList[DAY]=tblSchedule[[#Headers],[TUESDAY]])*($B52>=tblClassList[START TIME])*($B52<=tblClassList[END TIME]),tblClassList[UNIQUE]),tblClassList[UNIQUE],0),2),0)","v":0},{"$f":"IFERROR(INDEX(tblClassList[],MATCH(SUMPRODUCT((tblClassList[DAY]=tblSchedule[[#Headers],[WEDNESDAY]])*($B52>=tblClassList[START TIME])*($B52<=tblClassList[END TIME]),tblClassList[UNIQUE]),tblClassList[UNIQUE],0),2),0)","v":0},{"$f":"IFERROR(INDEX(tblClassList[],MATCH(SUMPRODUCT((tblClassList[DAY]=tblSchedule[[#Headers],[THURSDAY]])*($B52>=tblClassList[START TIME])*($B52<=tblClassList[END TIME]),tblClassList[UNIQUE]),tblClassList[UNIQUE],0),2),0)","v":0},{"$f":"IFERROR(INDEX(tblClassList[],MATCH(SUMPRODUCT((tblClassList[DAY]=tblSchedule[[#Headers],[FRIDAY]])*($B52>=tblClassList[START TIME])*($B52<=tblClassList[END TIME]),tblClassList[UNIQUE]),tblClassList[UNIQUE],0),2),0)","v":0},{"$f":"IFERROR(INDEX(tblClassList[],MATCH(SUMPRODUCT((tblClassList[DAY]=tblSchedule[[#Headers],[SATURDAY]])*($B52>=tblClassList[START TIME])*($B52<=tblClassList[END TIME]),tblClassList[UNIQUE]),tblClassList[UNIQUE],0),2),0)","v":0}]
[null,"20:15:00",{"$f":"IFERROR(INDEX(tblClassList[],MATCH(SUMPRODUCT((tblClassList[DAY]=tblSchedule[[#Headers],[SUNDAY]])*($B53>=tblClassList[START TIME])*($B53<=tblClassList[END TIME]),tblClassList[UNIQUE]),tblClassList[UNIQUE],0),2),0)","v":0},{"$f":"IFERROR(INDEX(tblClassList[],MATCH(SUMPRODUCT((tblClassList[DAY]=tblSchedule[[#Headers],[MONDAY]])*($B53>=tblClassList[START TIME])*($B53<=tblClassList[END TIME]),tblClassList[UNIQUE]),tblClassList[UNIQUE],0),2),0)","v":0},{"$f":"IFERROR(INDEX(tblClassList[],MATCH(SUMPRODUCT((tblClassList[DAY]=tblSchedule[[#Headers],[TUESDAY]])*($B53>=tblClassList[START TIME])*($B53<=tblClassList[END TIME]),tblClassList[UNIQUE]),tblClassList[UNIQUE],0),2),0)","v":0},{"$f":"IFERROR(INDEX(tblClassList[],MATCH(SUMPRODUCT((tblClassList[DAY]=tblSchedule[[#Headers],[WEDNESDAY]])*($B53>=tblClassList[START TIME])*($B53<=tblClassList[END TIME]),tblClassList[UNIQUE]),tblClassList[UNIQUE],0),2),0)","v":0},{"$f":"IFERROR(INDEX(tblClassList[],MATCH(SUMPRODUCT((tblClassList[DAY]=tblSchedule[[#Headers],[THURSDAY]])*($B53>=tblClassList[START TIME])*($B53<=tblClassList[END TIME]),tblClassList[UNIQUE]),tblClassList[UNIQUE],0),2),0)","v":0},{"$f":"IFERROR(INDEX(tblClassList[],MATCH(SUMPRODUCT((tblClassList[DAY]=tblSchedule[[#Headers],[FRIDAY]])*($B53>=tblClassList[START TIME])*($B53<=tblClassList[END TIME]),tblClassList[UNIQUE]),tblClassList[UNIQUE],0),2),0)","v":0},{"$f":"IFERROR(INDEX(tblClassList[],MATCH(SUMPRODUCT((tblClassList[DAY]=tblSchedule[[#Headers],[SATURDAY]])*($B53>=tblClassList[START TIME])*($B53<=tblClassList[END TIME]),tblClassList[UNIQUE]),tblClassList[UNIQUE],0),2),0)","v":0}]
[null,"20:30:00",{"$f":"IFERROR(INDEX(tblClassList[],MATCH(SUMPRODUCT((tblClassList[DAY]=tblSchedule[[#Headers],[SUNDAY]])*($B54>=tblClassList[START TIME])*($B54<=tblClassList[END TIME]),tblClassList[UNIQUE]),tblClassList[UNIQUE],0),2),0)","v":0},{"$f":"IFERROR(INDEX(tblClassList[],MATCH(SUMPRODUCT((tblClassList[DAY]=tblSchedule[[#Headers],[MONDAY]])*($B54>=tblClassList[START TIME])*($B54<=tblClassList[END TIME]),tblClassList[UNIQUE]),tblClassList[UNIQUE],0),2),0)","v":0},{"$f":"IFERROR(INDEX(tblClassList[],MATCH(SUMPRODUCT((tblClassList[DAY]=tblSchedule[[#Headers],[TUESDAY]])*($B54>=tblClassList[START TIME])*($B54<=tblClassList[END TIME]),tblClassList[UNIQUE]),tblClassList[UNIQUE],0),2),0)","v":0},{"$f":"IFERROR(INDEX(tblClassList[],MATCH(SUMPRODUCT((tblClassList[DAY]=tblSchedule[[#Headers],[WEDNESDAY]])*($B54>=tblClassList[START TIME])*($B54<=tblClassList[END TIME]),tblClassList[UNIQUE]),tblClassList[UNIQUE],0),2),0)","v":0},{"$f":"IFERROR(INDEX(tblClassList[],MATCH(SUMPRODUCT((tblClassList[DAY]=tblSchedule[[#Headers],[THURSDAY]])*($B54>=tblClassList[START TIME])*($B54<=tblClassList[END TIME]),tblClassList[UNIQUE]),tblClassList[UNIQUE],0),2),0)","v":0},{"$f":"IFERROR(INDEX(tblClassList[],MATCH(SUMPRODUCT((tblClassList[DAY]=tblSchedule[[#Headers],[FRIDAY]])*($B54>=tblClassList[START TIME])*($B54<=tblClassList[END TIME]),tblClassList[UNIQUE]),tblClassList[UNIQUE],0),2),0)","v":0},{"$f":"IFERROR(INDEX(tblClassList[],MATCH(SUMPRODUCT((tblClassList[DAY]=tblSchedule[[#Headers],[SATURDAY]])*($B54>=tblClassList[START TIME])*($B54<=tblClassList[END TIME]),tblClassList[UNIQUE]),tblClassList[UNIQUE],0),2),0)","v":0}]
[null,"20:45:00",{"$f":"IFERROR(INDEX(tblClassList[],MATCH(SUMPRODUCT((tblClassList[DAY]=tblSchedule[[#Headers],[SUNDAY]])*($B55>=tblClassList[START TIME])*($B55<=tblClassList[END TIME]),tblClassList[UNIQUE]),tblClassList[UNIQUE],0),2),0)","v":0},{"$f":"IFERROR(INDEX(tblClassList[],MATCH(SUMPRODUCT((tblClassList[DAY]=tblSchedule[[#Headers],[MONDAY]])*($B55>=tblClassList[START TIME])*($B55<=tblClassList[END TIME]),tblClassList[UNIQUE]),tblClassList[UNIQUE],0),2),0)","v":0},{"$f":"IFERROR(INDEX(tblClassList[],MATCH(SUMPRODUCT((tblClassList[DAY]=tblSchedule[[#Headers],[TUESDAY]])*($B55>=tblClassList[START TIME])*($B55<=tblClassList[END TIME]),tblClassList[UNIQUE]),tblClassList[UNIQUE],0),2),0)","v":0},{"$f":"IFERROR(INDEX(tblClassList[],MATCH(SUMPRODUCT((tblClassList[DAY]=tblSchedule[[#Headers],[WEDNESDAY]])*($B55>=tblClassList[START TIME])*($B55<=tblClassList[END TIME]),tblClassList[UNIQUE]),tblClassList[UNIQUE],0),2),0)","v":0},{"$f":"IFERROR(INDEX(tblClassList[],MATCH(SUMPRODUCT((tblClassList[DAY]=tblSchedule[[#Headers],[THURSDAY]])*($B55>=tblClassList[START TIME])*($B55<=tblClassList[END TIME]),tblClassList[UNIQUE]),tblClassList[UNIQUE],0),2),0)","v":0},{"$f":"IFERROR(INDEX(tblClassList[],MATCH(SUMPRODUCT((tblClassList[DAY]=tblSchedule[[#Headers],[FRIDAY]])*($B55>=tblClassList[START TIME])*($B55<=tblClassList[END TIME]),tblClassList[UNIQUE]),tblClassList[UNIQUE],0),2),0)","v":0},{"$f":"IFERROR(INDEX(tblClassList[],MATCH(SUMPRODUCT((tblClassList[DAY]=tblSchedule[[#Headers],[SATURDAY]])*($B55>=tblClassList[START TIME])*($B55<=tblClassList[END TIME]),tblClassList[UNIQUE]),tblClassList[UNIQUE],0),2),0)","v":0}]
[null,"21:00:00",{"$f":"IFERROR(INDEX(tblClassList[],MATCH(SUMPRODUCT((tblClassList[DAY]=tblSchedule[[#Headers],[SUNDAY]])*($B56>=tblClassList[START TIME])*($B56<=tblClassList[END TIME]),tblClassList[UNIQUE]),tblClassList[UNIQUE],0),2),0)","v":0},{"$f":"IFERROR(INDEX(tblClassList[],MATCH(SUMPRODUCT((tblClassList[DAY]=tblSchedule[[#Headers],[MONDAY]])*($B56>=tblClassList[START TIME])*($B56<=tblClassList[END TIME]),tblClassList[UNIQUE]),tblClassList[UNIQUE],0),2),0)","v":0},{"$f":"IFERROR(INDEX(tblClassList[],MATCH(SUMPRODUCT((tblClassList[DAY]=tblSchedule[[#Headers],[TUESDAY]])*($B56>=tblClassList[START TIME])*($B56<=tblClassList[END TIME]),tblClassList[UNIQUE]),tblClassList[UNIQUE],0),2),0)","v":0},{"$f":"IFERROR(INDEX(tblClassList[],MATCH(SUMPRODUCT((tblClassList[DAY]=tblSchedule[[#Headers],[WEDNESDAY]])*($B56>=tblClassList[START TIME])*($B56<=tblClassList[END TIME]),tblClassList[UNIQUE]),tblClassList[UNIQUE],0),2),0)","v":0},{"$f":"IFERROR(INDEX(tblClassList[],MATCH(SUMPRODUCT((tblClassList[DAY]=tblSchedule[[#Headers],[THURSDAY]])*($B56>=tblClassList[START TIME])*($B56<=tblClassList[END TIME]),tblClassList[UNIQUE]),tblClassList[UNIQUE],0),2),0)","v":0},{"$f":"IFERROR(INDEX(tblClassList[],MATCH(SUMPRODUCT((tblClassList[DAY]=tblSchedule[[#Headers],[FRIDAY]])*($B56>=tblClassList[START TIME])*($B56<=tblClassList[END TIME]),tblClassList[UNIQUE]),tblClassList[UNIQUE],0),2),0)","v":0},{"$f":"IFERROR(INDEX(tblClassList[],MATCH(SUMPRODUCT((tblClassList[DAY]=tblSchedule[[#Headers],[SATURDAY]])*($B56>=tblClassList[START TIME])*($B56<=tblClassList[END TIME]),tblClassList[UNIQUE]),tblClassList[UNIQUE],0),2),0)","v":0}]
[null,"21:15:00",{"$f":"IFERROR(INDEX(tblClassList[],MATCH(SUMPRODUCT((tblClassList[DAY]=tblSchedule[[#Headers],[SUNDAY]])*($B57>=tblClassList[START TIME])*($B57<=tblClassList[END TIME]),tblClassList[UNIQUE]),tblClassList[UNIQUE],0),2),0)","v":0},{"$f":"IFERROR(INDEX(tblClassList[],MATCH(SUMPRODUCT((tblClassList[DAY]=tblSchedule[[#Headers],[MONDAY]])*($B57>=tblClassList[START TIME])*($B57<=tblClassList[END TIME]),tblClassList[UNIQUE]),tblClassList[UNIQUE],0),2),0)","v":0},{"$f":"IFERROR(INDEX(tblClassList[],MATCH(SUMPRODUCT((tblClassList[DAY]=tblSchedule[[#Headers],[TUESDAY]])*($B57>=tblClassList[START TIME])*($B57<=tblClassList[END TIME]),tblClassList[UNIQUE]),tblClassList[UNIQUE],0),2),0)","v":0},{"$f":"IFERROR(INDEX(tblClassList[],MATCH(SUMPRODUCT((tblClassList[DAY]=tblSchedule[[#Headers],[WEDNESDAY]])*($B57>=tblClassList[START TIME])*($B57<=tblClassList[END TIME]),tblClassList[UNIQUE]),tblClassList[UNIQUE],0),2),0)","v":0},{"$f":"IFERROR(INDEX(tblClassList[],MATCH(SUMPRODUCT((tblClassList[DAY]=tblSchedule[[#Headers],[THURSDAY]])*($B57>=tblClassList[START TIME])*($B57<=tblClassList[END TIME]),tblClassList[UNIQUE]),tblClassList[UNIQUE],0),2),0)","v":0},{"$f":"IFERROR(INDEX(tblClassList[],MATCH(SUMPRODUCT((tblClassList[DAY]=tblSchedule[[#Headers],[FRIDAY]])*($B57>=tblClassList[START TIME])*($B57<=tblClassList[END TIME]),tblClassList[UNIQUE]),tblClassList[UNIQUE],0),2),0)","v":0},{"$f":"IFERROR(INDEX(tblClassList[],MATCH(SUMPRODUCT((tblClassList[DAY]=tblSchedule[[#Headers],[SATURDAY]])*($B57>=tblClassList[START TIME])*($B57<=tblClassList[END TIME]),tblClassList[UNIQUE]),tblClassList[UNIQUE],0),2),0)","v":0}]
[null,"21:30:00",{"$f":"IFERROR(INDEX(tblClassList[],MATCH(SUMPRODUCT((tblClassList[DAY]=tblSchedule[[#Headers],[SUNDAY]])*($B58>=tblClassList[START TIME])*($B58<=tblClassList[END TIME]),tblClassList[UNIQUE]),tblClassList[UNIQUE],0),2),0)","v":0},{"$f":"IFERROR(INDEX(tblClassList[],MATCH(SUMPRODUCT((tblClassList[DAY]=tblSchedule[[#Headers],[MONDAY]])*($B58>=tblClassList[START TIME])*($B58<=tblClassList[END TIME]),tblClassList[UNIQUE]),tblClassList[UNIQUE],0),2),0)","v":0},{"$f":"IFERROR(INDEX(tblClassList[],MATCH(SUMPRODUCT((tblClassList[DAY]=tblSchedule[[#Headers],[TUESDAY]])*($B58>=tblClassList[START TIME])*($B58<=tblClassList[END TIME]),tblClassList[UNIQUE]),tblClassList[UNIQUE],0),2),0)","v":0},{"$f":"IFERROR(INDEX(tblClassList[],MATCH(SUMPRODUCT((tblClassList[DAY]=tblSchedule[[#Headers],[WEDNESDAY]])*($B58>=tblClassList[START TIME])*($B58<=tblClassList[END TIME]),tblClassList[UNIQUE]),tblClassList[UNIQUE],0),2),0)","v":0},{"$f":"IFERROR(INDEX(tblClassList[],MATCH(SUMPRODUCT((tblClassList[DAY]=tblSchedule[[#Headers],[THURSDAY]])*($B58>=tblClassList[START TIME])*($B58<=tblClassList[END TIME]),tblClassList[UNIQUE]),tblClassList[UNIQUE],0),2),0)","v":0},{"$f":"IFERROR(INDEX(tblClassList[],MATCH(SUMPRODUCT((tblClassList[DAY]=tblSchedule[[#Headers],[FRIDAY]])*($B58>=tblClassList[START TIME])*($B58<=tblClassList[END TIME]),tblClassList[UNIQUE]),tblClassList[UNIQUE],0),2),0)","v":0},{"$f":"IFERROR(INDEX(tblClassList[],MATCH(SUMPRODUCT((tblClassList[DAY]=tblSchedule[[#Headers],[SATURDAY]])*($B58>=tblClassList[START TIME])*($B58<=tblClassList[END TIME]),tblClassList[UNIQUE]),tblClassList[UNIQUE],0),2),0)","v":0}]
[null,"21:45:00",{"$f":"IFERROR(INDEX(tblClassList[],MATCH(SUMPRODUCT((tblClassList[DAY]=tblSchedule[[#Headers],[SUNDAY]])*($B59>=tblClassList[START TIME])*($B59<=tblClassList[END TIME]),tblClassList[UNIQUE]),tblClassList[UNIQUE],0),2),0)","v":0},{"$f":"IFERROR(INDEX(tblClassList[],MATCH(SUMPRODUCT((tblClassList[DAY]=tblSchedule[[#Headers],[MONDAY]])*($B59>=tblClassList[START TIME])*($B59<=tblClassList[END TIME]),tblClassList[UNIQUE]),tblClassList[UNIQUE],0),2),0)","v":0},{"$f":"IFERROR(INDEX(tblClassList[],MATCH(SUMPRODUCT((tblClassList[DAY]=tblSchedule[[#Headers],[TUESDAY]])*($B59>=tblClassList[START TIME])*($B59<=tblClassList[END TIME]),tblClassList[UNIQUE]),tblClassList[UNIQUE],0),2),0)","v":0},{"$f":"IFERROR(INDEX(tblClassList[],MATCH(SUMPRODUCT((tblClassList[DAY]=tblSchedule[[#Headers],[WEDNESDAY]])*($B59>=tblClassList[START TIME])*($B59<=tblClassList[END TIME]),tblClassList[UNIQUE]),tblClassList[UNIQUE],0),2),0)","v":0},{"$f":"IFERROR(INDEX(tblClassList[],MATCH(SUMPRODUCT((tblClassList[DAY]=tblSchedule[[#Headers],[THURSDAY]])*($B59>=tblClassList[START TIME])*($B59<=tblClassList[END TIME]),tblClassList[UNIQUE]),tblClassList[UNIQUE],0),2),0)","v":0},{"$f":"IFERROR(INDEX(tblClassList[],MATCH(SUMPRODUCT((tblClassList[DAY]=tblSchedule[[#Headers],[FRIDAY]])*($B59>=tblClassList[START TIME])*($B59<=tblClassList[END TIME]),tblClassList[UNIQUE]),tblClassList[UNIQUE],0),2),0)","v":0},{"$f":"IFERROR(INDEX(tblClassList[],MATCH(SUMPRODUCT((tblClassList[DAY]=tblSchedule[[#Headers],[SATURDAY]])*($B59>=tblClassList[START TIME])*($B59<=tblClassList[END TIME]),tblClassList[UNIQUE]),tblClassList[UNIQUE],0),2),0)","v":0}]
[null,"22:00:00",{"$f":"IFERROR(INDEX(tblClassList[],MATCH(SUMPRODUCT((tblClassList[DAY]=tblSchedule[[#Headers],[SUNDAY]])*($B60>=tblClassList[START TIME])*($B60<=tblClassList[END TIME]),tblClassList[UNIQUE]),tblClassList[UNIQUE],0),2),0)","v":0},{"$f":"IFERROR(INDEX(tblClassList[],MATCH(SUMPRODUCT((tblClassList[DAY]=tblSchedule[[#Headers],[MONDAY]])*($B60>=tblClassList[START TIME])*($B60<=tblClassList[END TIME]),tblClassList[UNIQUE]),tblClassList[UNIQUE],0),2),0)","v":0},{"$f":"IFERROR(INDEX(tblClassList[],MATCH(SUMPRODUCT((tblClassList[DAY]=tblSchedule[[#Headers],[TUESDAY]])*($B60>=tblClassList[START TIME])*($B60<=tblClassList[END TIME]),tblClassList[UNIQUE]),tblClassList[UNIQUE],0),2),0)","v":0},{"$f":"IFERROR(INDEX(tblClassList[],MATCH(SUMPRODUCT((tblClassList[DAY]=tblSchedule[[#Headers],[WEDNESDAY]])*($B60>=tblClassList[START TIME])*($B60<=tblClassList[END TIME]),tblClassList[UNIQUE]),tblClassList[UNIQUE],0),2),0)","v":0},{"$f":"IFERROR(INDEX(tblClassList[],MATCH(SUMPRODUCT((tblClassList[DAY]=tblSchedule[[#Headers],[THURSDAY]])*($B60>=tblClassList[START TIME])*($B60<=tblClassList[END TIME]),tblClassList[UNIQUE]),tblClassList[UNIQUE],0),2),0)","v":0},{"$f":"IFERROR(INDEX(tblClassList[],MATCH(SUMPRODUCT((tblClassList[DAY]=tblSchedule[[#Headers],[FRIDAY]])*($B60>=tblClassList[START TIME])*($B60<=tblClassList[END TIME]),tblClassList[UNIQUE]),tblClassList[UNIQUE],0),2),0)","v":0},{"$f":"IFERROR(INDEX(tblClassList[],MATCH(SUMPRODUCT((tblClassList[DAY]=tblSchedule[[#Headers],[SATURDAY]])*($B60>=tblClassList[START TIME])*($B60<=tblClassList[END TIME]),tblClassList[UNIQUE]),tblClassList[UNIQUE],0),2),0)","v":0}]
[null,"22:15:00",{"$f":"IFERROR(INDEX(tblClassList[],MATCH(SUMPRODUCT((tblClassList[DAY]=tblSchedule[[#Headers],[SUNDAY]])*($B61>=tblClassList[START TIME])*($B61<=tblClassList[END TIME]),tblClassList[UNIQUE]),tblClassList[UNIQUE],0),2),0)","v":0},{"$f":"IFERROR(INDEX(tblClassList[],MATCH(SUMPRODUCT((tblClassList[DAY]=tblSchedule[[#Headers],[MONDAY]])*($B61>=tblClassList[START TIME])*($B61<=tblClassList[END TIME]),tblClassList[UNIQUE]),tblClassList[UNIQUE],0),2),0)","v":0},{"$f":"IFERROR(INDEX(tblClassList[],MATCH(SUMPRODUCT((tblClassList[DAY]=tblSchedule[[#Headers],[TUESDAY]])*($B61>=tblClassList[START TIME])*($B61<=tblClassList[END TIME]),tblClassList[UNIQUE]),tblClassList[UNIQUE],0),2),0)","v":0},{"$f":"IFERROR(INDEX(tblClassList[],MATCH(SUMPRODUCT((tblClassList[DAY]=tblSchedule[[#Headers],[WEDNESDAY]])*($B61>=tblClassList[START TIME])*($B61<=tblClassList[END TIME]),tblClassList[UNIQUE]),tblClassList[UNIQUE],0),2),0)","v":0},{"$f":"IFERROR(INDEX(tblClassList[],MATCH(SUMPRODUCT((tblClassList[DAY]=tblSchedule[[#Headers],[THURSDAY]])*($B61>=tblClassList[START TIME])*($B61<=tblClassList[END TIME]),tblClassList[UNIQUE]),tblClassList[UNIQUE],0),2),0)","v":0},{"$f":"IFERROR(INDEX(tblClassList[],MATCH(SUMPRODUCT((tblClassList[DAY]=tblSchedule[[#Headers],[FRIDAY]])*($B61>=tblClassList[START TIME])*($B61<=tblClassList[END TIME]),tblClassList[UNIQUE]),tblClassList[UNIQUE],0),2),0)","v":0},{"$f":"IFERROR(INDEX(tblClassList[],MATCH(SUMPRODUCT((tblClassList[DAY]=tblSchedule[[#Headers],[SATURDAY]])*($B61>=tblClassList[START TIME])*($B61<=tblClassList[END TIME]),tblClassList[UNIQUE]),tblClassList[UNIQUE],0),2),0)","v":0}]
[null,"22:30:00",{"$f":"IFERROR(INDEX(tblClassList[],MATCH(SUMPRODUCT((tblClassList[DAY]=tblSchedule[[#Headers],[SUNDAY]])*($B62>=tblClassList[START TIME])*($B62<=tblClassList[END TIME]),tblClassList[UNIQUE]),tblClassList[UNIQUE],0),2),0)","v":0},{"$f":"IFERROR(INDEX(tblClassList[],MATCH(SUMPRODUCT((tblClassList[DAY]=tblSchedule[[#Headers],[MONDAY]])*($B62>=tblClassList[START TIME])*($B62<=tblClassList[END TIME]),tblClassList[UNIQUE]),tblClassList[UNIQUE],0),2),0)","v":0},{"$f":"IFERROR(INDEX(tblClassList[],MATCH(SUMPRODUCT((tblClassList[DAY]=tblSchedule[[#Headers],[TUESDAY]])*($B62>=tblClassList[START TIME])*($B62<=tblClassList[END TIME]),tblClassList[UNIQUE]),tblClassList[UNIQUE],0),2),0)","v":0},{"$f":"IFERROR(INDEX(tblClassList[],MATCH(SUMPRODUCT((tblClassList[DAY]=tblSchedule[[#Headers],[WEDNESDAY]])*($B62>=tblClassList[START TIME])*($B62<=tblClassList[END TIME]),tblClassList[UNIQUE]),tblClassList[UNIQUE],0),2),0)","v":0},{"$f":"IFERROR(INDEX(tblClassList[],MATCH(SUMPRODUCT((tblClassList[DAY]=tblSchedule[[#Headers],[THURSDAY]])*($B62>=tblClassList[START TIME])*($B62<=tblClassList[END TIME]),tblClassList[UNIQUE]),tblClassList[UNIQUE],0),2),0)","v":0},{"$f":"IFERROR(INDEX(tblClassList[],MATCH(SUMPRODUCT((tblClassList[DAY]=tblSchedule[[#Headers],[FRIDAY]])*($B62>=tblClassList[START TIME])*($B62<=tblClassList[END TIME]),tblClassList[UNIQUE]),tblClassList[UNIQUE],0),2),0)","v":0},{"$f":"IFERROR(INDEX(tblClassList[],MATCH(SUMPRODUCT((tblClassList[DAY]=tblSchedule[[#Headers],[SATURDAY]])*($B62>=tblClassList[START TIME])*($B62<=tblClassList[END TIME]),tblClassList[UNIQUE]),tblClassList[UNIQUE],0),2),0)","v":0}]
[null,"22:45:00",{"$f":"IFERROR(INDEX(tblClassList[],MATCH(SUMPRODUCT((tblClassList[DAY]=tblSchedule[[#Headers],[SUNDAY]])*($B63>=tblClassList[START TIME])*($B63<=tblClassList[END TIME]),tblClassList[UNIQUE]),tblClassList[UNIQUE],0),2),0)","v":0},{"$f":"IFERROR(INDEX(tblClassList[],MATCH(SUMPRODUCT((tblClassList[DAY]=tblSchedule[[#Headers],[MONDAY]])*($B63>=tblClassList[START TIME])*($B63<=tblClassList[END TIME]),tblClassList[UNIQUE]),tblClassList[UNIQUE],0),2),0)","v":0},{"$f":"IFERROR(INDEX(tblClassList[],MATCH(SUMPRODUCT((tblClassList[DAY]=tblSchedule[[#Headers],[TUESDAY]])*($B63>=tblClassList[START TIME])*($B63<=tblClassList[END TIME]),tblClassList[UNIQUE]),tblClassList[UNIQUE],0),2),0)","v":0},{"$f":"IFERROR(INDEX(tblClassList[],MATCH(SUMPRODUCT((tblClassList[DAY]=tblSchedule[[#Headers],[WEDNESDAY]])*($B63>=tblClassList[START TIME])*($B63<=tblClassList[END TIME]),tblClassList[UNIQUE]),tblClassList[UNIQUE],0),2),0)","v":0},{"$f":"IFERROR(INDEX(tblClassList[],MATCH(SUMPRODUCT((tblClassList[DAY]=tblSchedule[[#Headers],[THURSDAY]])*($B63>=tblClassList[START TIME])*($B63<=tblClassList[END TIME]),tblClassList[UNIQUE]),tblClassList[UNIQUE],0),2),0)","v":0},{"$f":"IFERROR(INDEX(tblClassList[],MATCH(SUMPRODUCT((tblClassList[DAY]=tblSchedule[[#Headers],[FRIDAY]])*($B63>=tblClassList[START TIME])*($B63<=tblClassList[END TIME]),tblClassList[UNIQUE]),tblClassList[UNIQUE],0),2),0)","v":0},{"$f":"IFERROR(INDEX(tblClassList[],MATCH(SUMPRODUCT((tblClassList[DAY]=tblSchedule[[#Headers],[SATURDAY]])*($B63>=tblClassList[START TIME])*($B63<=tblClassList[END TIME]),tblClassList[UNIQUE]),tblClassList[UNIQUE],0),2),0)","v":0}]

{"sheet":"Class List","index":1,"n_rows":10,"n_cols":8,"rows_kept":10,"merged":[[0,1,0,5],[0,6,0,7]]}
[null,"CLASS LIST"]
[null,"CLASS","ID","DAY","LOCATION","START TIME","END TIME","UNIQUE"]
[null,"Technical Writing","WR-121","MONDAY","Building A","13:00:00","14:00:00",{"$f":"ROW()-ROW(tblClassList[[#Headers],[UNIQUE]])","v":1}]
[null,"Technical Writing","WR-121","WEDNESDAY","Building A","13:00:00","14:00:00",{"$f":"ROW()-ROW(tblClassList[[#Headers],[UNIQUE]])","v":2}]
[null,"Public Speaking","SP-111","MONDAY","Building B","16:00:00","17:00:00",{"$f":"ROW()-ROW(tblClassList[[#Headers],[UNIQUE]])","v":3}]
[null,"Health & Fitness","HPE-295","TUESDAY","Building B","11:00:00","12:00:00",{"$f":"ROW()-ROW(tblClassList[[#Headers],[UNIQUE]])","v":4}]
[null,"Health & Fitness","HPE-295","THURSDAY","Building B","11:00:00","12:00:00",{"$f":"ROW()-ROW(tblClassList[[#Headers],[UNIQUE]])","v":5}]
[null,"Algebra","MTH-113","MONDAY","Building C","08:10:00","09:15:00",{"$f":"ROW()-ROW(tblClassList[[#Headers],[UNIQUE]])","v":6}]
[null,"Algebra","MTH-113","WEDNESDAY","Building C","08:10:00","09:15:00",{"$f":"ROW()-ROW(tblClassList[[#Headers],[UNIQUE]])","v":7}]
[null,"Algebra","MTH-113","FRIDAY","Building C","08:10:00","09:15:00",{"$f":"ROW()-ROW(tblClassList[[#Headers],[UNIQUE]])","v":8}]